{"text_format":"1","workbook":"xlsx","n_sheets":12,"sheets":["start","Sheet0","Sheet1","Sheet2","Sheet3","Sheet4","Sheet7","Sheet5","Sheet6","data_list","sheet9","sheet10"],"not_rendered":{"charts":0,"images":34,"macros":1,"external_links":0,"defined_names":27,"comments":0,"pivot_tables":0},"unopened":[],"bounds":{"document_bytes":16777216,"sheet_cells":100000,"rows_first":2000,"rows_last":500,"rows_between":2000,"halvings":0,"cell_chars":16384,"cell_head_chars":4096},"cells_cut":0,"cells_raw":0,"read":"whole","date_system":"1900"}

{"sheet":"start","index":0,"n_rows":1,"n_cols":2,"rows_kept":1,"cut":false,"hidden":false,"merged":[[0,1,0,16]]}
[null,"لطفاً جهت فعال شدن فرم، ابتدا نوار زرد رنگ بالا را تأیید نمایید. (Enable Content)"]

{"sheet":"Sheet0","index":1,"n_rows":23,"n_cols":5,"rows_kept":23,"cut":false,"hidden":false,"merged":[[21,4,21,7],[22,4,22,7],[7,5,7,11],[10,4,10,8],[11,4,20,14],[8,4,8,14]]}
[]
[]
[]
[]
[]
[]
[]
[]
[null,null,null,null,"فرم ثبت اطلاعات متقاضیان همکاری"]
[]
[null,null,null,null,"لطفا قبل از تکمیل فرم، نکات زیر را مطالعه فرمایید:"]
[null,null,null,null,"! پر کردن این فرم به منزله جذب، استخدام، قبول همکاری و یا هر نوع رابطه کاری دیگر با این شرکت نبوده و هیچگونه تعهدی را ایجاد نمی‌نماید.\n! اطلاعات شما بصورت محرمانه نگهداری شده و در صورت لزوم با شما تماس خواهیم گرفت و نیازی به مراجعه حضوری و یا تماس تلفنی نمی‌باشد.\n! در صورت مشاهده مغایرت اطلاعات مندرج در فرم با مدارک و مستندات در زمان دعوت به مصاحبه و یا درج اطلاعات گمراه‌کننده، هیچگونه ترتیب اثری به درخواست شما داده نخواهد شد.\nلطفا پس از تکمیل فرم، آن را به آدرس ایمیل job@kedc.ir، ارسال نمایید."]
[]
[]
[]
[]
[]
[]
[]
[]
[]
[null,null,null,null,"تهیه و تنظیم: حسین عباسی"]
[null,null,null,null,"کارشناس طرح‌های توسعه سرمایه انسانی"]

{"sheet":"Sheet1","index":2,"n_rows":26,"n_cols":20,"rows_kept":26,"cut":false,"hidden":false,"merged":[[17,13,17,14],[17,16,17,19],[17,4,17,5],[22,4,22,5],[22,7,22,8],[21,7,21,8],[21,9,21,10],[22,9,22,10],[1,1,2,1],[19,4,19,5],[19,13,19,14],[19,16,19,19],[7,4,7,5],[9,8,9,9],[12,16,12,18],[13,16,13,18],[9,13,9,14],[9,16,9,17],[9,18,9,19],[5,4,5,5],[5,7,5,10],[5,13,5,14],[5,16,5,19],[7,13,7,14],[1,3,2,20],[25,3,25,4],[25,5,25,13],[10,4,10,5],[10,8,10,9],[10,13,10,14],[10,16,10,17],[13,4,13,5],[13,7,13,10],[13,13,13,14],[22,11,22,19],[10,18,10,19],[15,4,15,5],[7,7,7,10],[7,18,7,19],[15,13,15,14]]}
[]
[]
[]
[]
[]
[null,null,null,null,"نام و نام خانوادگی:",null,null,null,null,null,null,null,null,"نام پدر:"]
[]
[null,null,null,null,"کد ملی:",null,null,null,null,null,null,null,null,"شماره شناسنامه:"]
[]
[null,null,null,null,null,null,null,"روز","ماه",null,"سال",null,null,null,null,null,"استان",null,"شهرستان"]
[null,null,null,null,"تاریخ تولد:",null,null,null,null,null,null,null,null,"محل تولد:"]
[]
[null,null,null,null,null,null,null,null,null,null,null,null,null,null,null,null,"تلفن",null,null,"پیش‌شماره"]
[null,null,null,null,"تلفن همراه:",null,null,null,null,null,null,null,null,"تلفن ثابت:",null,null,null,null,null,{"$f":"IFERROR(INDEX(Table3[],MATCH(H23,State0[],0)),\"\")","v":""}]
[]
[null,null,null,null,"جنسیت:",null,null,null,null,null,null,null,null,"مذهب:"]
[]
[null,null,null,null,"وضعیت تأهل:",null,null,null,null,null,null,null,null,{"$f":"IF(data_list!J5=2,\"شغل همسر:\",\"\")","v":""}]
[]
[null,null,null,null,"وضعیت نظام وظیفه:",null,null,null,null,null,null,null,null,{"$f":"IF(data_list!J2=1,\"علت معافیت:\",IF(data_list!J2=2,\"ارگان محل خدمت:\",\"\"))","v":""}]
[]
[null,null,null,null,null,null,null,"استان",null,"شهرستان",null,"ادامه آدرس"]
[null,null,null,null,"آدرس محل سکونت:"]
[]
[]
[null,null,null,"توضیح مهم:",null,"برای رفتن به صفحات بعدی و ادامه فرم، لازم است که تمام موارد فوق تکمیل گردند."]

{"sheet":"Sheet2","index":3,"n_rows":23,"n_cols":19,"rows_kept":23,"cut":false,"hidden":false,"merged":[[22,5,22,13],[22,3,22,4],[11,18,14,19],[1,1,2,1],[16,4,16,5],[16,7,16,10],[14,4,14,5],[12,4,12,5],[12,7,12,10],[5,4,6,5],[5,7,6,10],[14,7,14,10],[10,4,10,5],[10,7,10,10],[8,4,8,5],[8,7,8,10],[14,13,14,15],[16,13,16,15],[5,16,5,17],[20,3,20,4],[20,5,20,13],[5,11,5,12],[5,13,6,15],[12,13,12,15],[10,13,10,15],[8,13,8,15]]}
[]
[]
[]
[]
[]
[null,null,null,null,"مقطع تحصیلی",null,null,"رشته تحصیلی - گرایش",null,null,null,"معدل",null,"دانشگاه / مرکز محل تحصیل",null,null,"سال تحصیلی"]
[null,null,null,null,null,null,null,null,null,null,null,"اعشار","صحیح",null,null,null,"از","تا"]
[]
[null,null,null,null,"دیپلم"]
[]
[null,null,null,null,"فوق دیپلم"]
[null,null,null,null,null,null,null,null,null,null,null,null,null,null,null,null,null,null,"چنانچه دوره کارشناسی را بصورت پیوسته گذرانده‌اید، این ردیف را خالی بگذارید."]
[null,null,null,null,"لیسانس"]
[]
[null,null,null,null,"فوق لیسانس"]
[]
[null,null,null,null,"دکترا"]
[]
[]
[]
[null,null,null,"توضیح مهم:",null,"حداقل یکی از مدارک تحصیلی باید تکمیل گردد تا بتوانید به صفحه بعد منتقل شوید.",null,null,null,null,null,null,null,null,null,null,null,null,"صفحه بعد  >>"]
[]
[null,null,null,"خطا !",null,"تاریخ شروع دوره تحصیلی باید از تاریخ پایان آن کمتر باشد."]

{"sheet":"Sheet3","index":4,"n_rows":36,"n_cols":17,"rows_kept":36,"cut":false,"hidden":false,"merged":[[35,3,35,4],[8,4,8,5],[35,5,35,15],[18,16,18,17],[22,4,24,5],[22,8,22,12],[22,13,22,14],[32,8,32,12],[32,13,32,14],[26,8,26,12],[26,13,26,14],[28,8,28,12],[28,13,28,14],[30,8,30,12],[30,13,30,14],[24,8,24,12],[1,1,2,1],[12,4,14,5],[16,16,16,17],[8,15,8,19],[9,15,9,18],[12,16,12,17],[14,16,14,17],[6,4,6,5],[6,15,6,19],[22,16,22,17],[24,16,24,17],[24,13,24,14],[12,8,12,15],[14,8,14,15],[16,8,16,15],[18,8,18,15],[26,4,29,5],[26,16,26,17],[28,16,28,17],[30,16,30,17],[32,16,32,17]]}
[]
[]
[]
[]
[]
[]
[null,null,null,null,"سطح آشنایی با زبان:",null,null,null,null,null,null,null,null,null,null,"مدرک معتبر مانند TOFEL، IELTS، TOLIMO دارم."]
[null,null,null,null,null,null,null,null,null,null,null,null,null,null,"نام مدرک:"]
[null,null,null,null,"کار با کامپیوتر:",null,null,null,null,null,null,null,null,null,null,"مدرک معتبر مانند ICDL دارم."]
[null,null,null,null,null,null,null,null,null,null,null,null,null,null,"نام مدرک:"]
[]
[]
[null,null,null,null,"نرم افزارهای پایه و تخصصی مورد نیاز",null,null,"ردیف","نام نرم افزار",null,null,null,null,null,null,null,"میزان تسلط"]
[]
[null,null,null,null,null,null,null,1]
[]
[null,null,null,null,null,null,null,2]
[]
[null,null,null,null,null,null,null,3]
[]
[]
[]
[null,null,null,null,"دوره‌های آموزشی گذرانده شده",null,null,"ردیف","عنوان دوره",null,null,null,null,"طول دوره (ساعت)",null,"سال","محل آموزش"]
[]
[null,null,null,null,null,null,null,1]
[]
[null,null,null,null,"مهم‌ترین و مرتبط‌ترین دوره‌های آموزشی که گذرانده‌اید را ذکر نمایید.",null,null,2]
[]
[null,null,null,null,null,null,null,3]
[]
[null,null,null,null,null,null,null,4]
[]
[null,null,null,null,null,null,null,5]
[]
[]
[null,null,null,"توضیح مهم:",null,"برای هر کدام از موارد فوق می‌بایست مدرک و گواهینامه مربوطه، در صورت نیاز تحویل گردد."]

{"sheet":"Sheet4","index":5,"n_rows":27,"n_cols":15,"rows_kept":27,"cut":false,"hidden":false,"merged":[[26,5,26,12],[22,11,22,17],[14,5,14,8],[1,1,2,1],[7,5,8,8],[7,11,8,17],[10,11,10,17],[12,11,12,17],[6,9,6,10],[7,9,7,10],[7,4,8,4],[10,5,10,8],[12,5,12,8],[5,8,5,10],[5,12,5,13],[5,14,5,17],[20,19,20,21],[22,19,22,21],[10,19,10,21],[12,19,12,21],[14,19,14,21],[16,19,16,21],[18,19,18,21],[16,5,16,8],[22,5,22,8],[14,11,14,17],[18,5,18,8],[20,5,20,8],[16,11,16,17],[18,11,18,17],[20,11,20,17]]}
[]
[]
[]
[]
[]
[null,null,null,null,null,null,null,null,"جمع سابقه بیمه پردازی (روز):",null,null,null,null,null,"اگر سابقه بیمه ندارید، عدد صفر را وارد نمایید."]
[]
[null,null,null,null,"ردیف","نام دستگاه اجرایی / سازمان / شرکت / مؤسسه (به ترتیب از آخرین سمت درج شود)",null,null,null,"تاریخ فعالیت",null,"مسئولیت / سمت / پست سازمانی"]
[null,null,null,null,null,null,null,null,null,"از","تا"]
[]
[null,null,null,null,1,null,null,null,null,null,1400]
[]
[null,null,null,null,2]
[]
[null,null,null,null,3]
[]
[null,null,null,null,4]
[]
[null,null,null,null,5]
[]
[null,null,null,null,6]
[]
[null,null,null,null,7]
[]
[]
[]
[null,null,null,null,"خطا !!","تاریخ شروع فعالیت باید از تاریخ پایان آن کمتر (یا مساوی) باشد."]

{"sheet":"Sheet7","index":6,"n_rows":3,"n_cols":3,"rows_kept":3,"cut":false,"hidden":false,"merged":[[2,2,4,12]]}
[]
[]
[null,null,"جهت تکمیل ادامه فرم، لطفاً یکی از گزینه‌های زیر را انتخاب نمایید:"]

{"sheet":"Sheet5","index":7,"n_rows":38,"n_cols":20,"rows_kept":38,"cut":false,"hidden":false,"merged":[[37,7,38,10],[8,16,8,18],[37,16,38,19],[29,16,29,19],[31,16,31,19],[33,16,33,19],[35,16,35,19],[35,13,35,14],[22,16,22,19],[24,16,24,19],[7,16,7,18],[29,13,29,14],[31,13,31,14],[33,13,33,14],[18,4,18,10],[29,4,29,5],[33,4,33,5],[31,7,31,10],[29,7,29,10],[33,7,33,10],[41,3,41,4],[41,5,41,11],[31,4,31,5],[10,16,10,18],[12,16,13,19],[18,13,18,14],[20,13,20,14],[18,16,18,19],[20,16,20,19],[22,13,22,14],[24,13,24,14],[37,4,37,5],[35,4,35,5],[35,7,35,10],[27,4,27,10],[37,13,37,14],[4,1,5,1],[8,4,8,5],[15,4,15,5],[8,13,8,14],[12,13,12,14],[12,4,12,5],[8,7,8,9],[12,7,12,9],[10,4,10,5],[10,7,10,9],[10,13,10,14],[7,7,7,9]]}
[]
[]
[]
[]
[]
[]
[]
[null,null,null,null,null,null,null,"یکی از گزینه ها را انتخاب کنید:",null,null,null,null,null,null,null,null,"یکی از گزینه ها را انتخاب کنید:"]
[null,null,null,null,"رشته شغلی مورد تقاضا:",null,null,null,null,null,null,null,null,"روش آشنایی با شرکت:"]
[null,null,null,null,null,null,null,null,null,null,null,null,null,"سال اخذ"]
[null,null,null,null,"قد (سانتیمتر): ",null,null,null,null,null,null,null,null,"وزن(کیلوگرم):"]
[]
[null,null,null,null,"سابقه بازداشت و زندان؟",null,null,null,null,null,null,null,null,"به چه علت؟"]
[]
[null,null,null,null,null,null,null,null,null,"سال اخذ",null,null,null,"نوع","سال اخذ",null,null,null,"سال اخذ","نوع"]
[null,null,null,null,"گواهینامه:"]
[]
[]
[null,null,null,null,"آیا از بستگان شما کسی در صنعت برق شاغل است؟",null,null,null,null,null,null,null,null,"نام و نام خانوادگی:"]
[]
[null,null,null,null,null,null,null,null,null,null,null,null,null,"شغل / پست:"]
[]
[null,null,null,null,null,null,null,null,null,null,null,null,null,"محل خدمت:"]
[]
[null,null,null,null,null,null,null,null,null,null,null,null,null,"شماره تماس:"]
[]
[]
[null,null,null,null,"نام دو نفر از افراد معتمدی که شما را  کاملا می شناسند بنویسید."]
[]
[null,null,null,null,"نام و نام خانوادگی:",null,null,null,null,null,null,null,null,"نام و نام خانوادگی:"]
[]
[null,null,null,null,"شغل:",null,null,null,null,null,null,null,null,"شغل:"]
[]
[null,null,null,null,"نسبت:",null,null,null,null,null,null,null,null,"نسبت:"]
[]
[null,null,null,null,"تلفن:",null,null,null,null,null,null,null,null,"تلفن:"]
[]
[null,null,null,null,"آدرس:",null,null,null,null,null,null,null,null,"آدرس:"]

{"sheet":"Sheet6","index":8,"n_rows":11,"n_cols":19,"rows_kept":11,"cut":false,"hidden":false,"merged":[[4,1,5,1],[7,7,7,9],[8,4,8,5],[8,13,8,14],[25,3,25,4],[25,5,25,11],[10,4,20,5],[8,16,8,17],[8,18,8,19],[8,7,8,11],[10,18,19,19],[10,7,20,17]]}
[]
[]
[]
[]
[]
[]
[]
[]
[null,null,null,null,"نام شرکت مبدأ:",null,null,null,null,null,null,null,null,"محل خدمت:"]
[]
[null,null,null,null,"دلایل خود را جهت انتقال به شرکت توزیع برق استان خراسان رضوی را شرح دهید:",null,null,null,null,null,null,null,null,null,null,null,null,null,"راهنما:\nبرای رفتن به خط بعدی در هنگام نوشتن (اینتر زدن) کلیدهای Alt و Enter را همزمان فشار دهید."]

{"sheet":"data_list","index":9,"n_rows":1133,"n_cols":27,"rows_kept":1133,"cut":false,"hidden":true,"merged":[[10,26,10,27],[0,26,0,27],[1,26,1,27]]}
["State1","City","State0","precode","reference","day","month","year","precode","سلول مرجع وضعیت خدمت","Skill","Article","book","level","education","پاک نکن تغییر سایز نده",null,"ماه ها","محاسبه سن","year1","height","Weight","سطح گواهینامه","گواهینامه ویژه","رشته شغلی","آشنایی با شرکت","تاریخ روز"]
["خراسان رضوی","مشهد","خراسان رضوی",51,null,1,"فروردین",1345,51,0,"تسلط کامل","علمی پژوهشی داخلی","تألیفی","کمک کارشناس/تکنسین","دیپلم و فوق دیپلم","+",null,{"$f":"IF(Sheet1!I11=data_list!G2,1,IF(Sheet1!I11=data_list!G3,2,IF(Sheet1!I11=data_list!G4,3,IF(Sheet1!I11=data_list!G5,4,IF(Sheet1!I11=data_list!G6,5,IF(Sheet1!I11=data_list!G7,6,IF(Sheet1!I11=data_list!G8,7,IF(Sheet1!I11=data_list!G9,8,IF(Sheet1!I11=data_list!G10,9,IF(Sheet1!I11=data_list!G11,10,IF(Sheet1!I11=data_list!G12,11,IF(Sheet1!I11=data_list!G13,12))))))))))))","v":false},{"$f":"1400-Sheet1!K11","v":1400},1400,210,110,"پایه دو","بالابر","تکنسین برق / سیمبان","اطلاعیه‌های شرکت در سطح شهر",{"$f":"TODAY()","v":"2021-08-11"}]
["خراسان رضوی","احمدآبادصولت","خراسان جنوبی",56,null,2,"اردیبهشت",1346,56,false,"تا حدود زیادی مسلط","علمی پژوهشی خارجی","ترجمه شده","کارشناس","کارشناسی",null,null,null,null,1399,209,109,"پایه سه","جرثقیل","کارشناس / مهندس برق","سایت شرکت"]
["خراسان رضوی","انابد","خراسان شمالی",58,null,3,"خرداد",1347,58,"سلول مرجع وضعیت تأهل-متأهل 3 و مجرد2","نسبتا مسلط","علمی ترویجی",null,"کارشناس مسئول","کارشناسی ارشد","+",null,null,null,1398,208,108,"پایه یک","لیفتراک","کارشناس کامپیوتر","سایر روشهای فضای مجازی"]
["خراسان رضوی","باجگيران","آذربایجان شرقی",41,null,4,"تیر",1348,41,0,"آشنایی مقدماتی","کنفرانسی",null,"رئیس اداره/گروه","دکترا",null,null,null,null,1397,207,107,null,"سایر","راننده سبک","پرسنل و آشنایان در شرکت"]
["خراسان رضوی","باخرز","آذربایجان غربی",44,null,5,"مرداد",1349,44,null,null,null,null,"مدیر امور/دفتر",null,"+",null,null,null,1396,206,106,null,null,"راننده سنگین","روزنامه ها و جراید"]
["خراسان رضوی","بار","اردبیل",45,null,6,"شهریور",1350,45,"سلول مرجع صفحه بعد1",null,null,null,null,null,null,null,null,null,1395,205,105,null,null,"خدماتی / کارگر انبار","سایر روشها"]
["خراسان رضوی","بايگ","اصفهان",31,null,7,"مهر",1351,31,{"$f":"IF(OR(ISBLANK(Sheet1!H6),ISBLANK(Sheet1!Q6),ISBLANK(Sheet1!H8),ISBLANK(Sheet1!H11),ISBLANK(Sheet1!I11),ISBLANK(Sheet1!K11),ISBLANK(Sheet1!Q11),ISBLANK(Sheet1!S11),ISBLANK(Sheet1!H14),ISBLANK(Sheet1!Q14),ISBLANK(Sheet1!H23),ISBLANK(Sheet1!J23),J20=0,J2=0,J5=0,J126=0),FALSE,TRUE)","v":false},null,{"$f":"IF(ISBLANK(Sheet1!L23),1,0)","v":1},null,null,null,"+",null,null,null,1394,204,104,null,null,"مأمور قرائت"]
["خراسان رضوی","بجستان","البرز",26,null,8,"آبان",1352,26,"سلول مرجع صفحه بعد2",null,null,null,null,null,null,null,null,null,1393,203,103,null,null,"سایر رشته ها"]
["خراسان رضوی","بردسكن","ایلام",84,null,9,"آذر",1353,84,{"$f":"IF(OR(AND(OR(ISBLANK(Sheet2!H9),ISBLANK(Sheet2!L9),ISBLANK(Sheet2!M9),ISBLANK(Sheet2!N9),ISBLANK(Sheet2!Q9),ISBLANK(Sheet2!R9)),OR(ISBLANK(Sheet2!H13),ISBLANK(Sheet2!L13),ISBLANK(Sheet2!M13),ISBLANK(Sheet2!N13),ISBLANK(Sheet2!Q13),ISBLANK(Sheet2!R13))),J138=FALSE),FALSE,TRUE)","v":false},null,null,null,null,null,"+",null,null,null,1392,202,102]
["خراسان رضوی","بيدخت","بوشهر",77,null,10,"دی",1354,77,"سلول مرجع صفحه بعد3",null,null,null,null,null,null,null,null,null,1391,201,101]
["خراسان رضوی","تايباد","تهران",21,null,11,"بهمن",1355,21,null,null,null,null,null,null,"+",null,null,null,1390,200,100]
["خراسان رضوی","تربت جام","چهارمحال و بختیاری",38,null,12,"اسفند",1356,38,"سلول مرجع صفحه بعد4",null,null,null,null,null,null,null,null,null,1389,199,99]
["خراسان رضوی","تربت حيدريه","خوزستان",61,null,13,null,1357,61,{"$f":"IF(Sheet4!M6=\"\",FALSE,IF(AND(OR(Sheet4!F11<>\"\",Sheet4!F13<>\"\",Sheet4!F15<>\"\",Sheet4!F17<>\"\",Sheet4!F19<>\"\",Sheet4!F21<>\"\",Sheet4!F23<>\"\"),data_list!J130=FALSE),FALSE,TRUE))","v":false},null,null,null,null,null,"+",null,null,null,1388,198,98]
["خراسان رضوی","جغتاي","زنجان",24,null,14,null,1358,24,"سلول مرجع صفحه بعد5",null,null,null,null,null,null,null,null,null,1387,197,97]
["خراسان رضوی","جنگل","سمنان",23,null,15,null,1359,23,true,null,null,null,null,null,"+",null,null,null,1386,196,96]
["خراسان رضوی","چاپشلو","سیستان و بلوچستان",54,null,16,null,1360,54,null,null,null,null,null,null,null,null,null,null,1385,195,95]
["خراسان رضوی","چكنه","فارس",71,null,17,null,1361,71,null,null,null,null,null,null,"+",null,null,null,1384,194,94]
["خراسان رضوی","چناران","قزوین",28,null,18,null,1362,28,"سلول مرجع خانم یا آقا-آقا 1 و خانم 2",null,null,null,null,null,null,null,null,null,1383,193,93]
["خراسان رضوی","خرو","قم",25,null,19,null,1363,25,0,null,null,null,null,null,"+",null,null,null,1382,192,92]
["خراسان رضوی","خليل آباد","کردستان",87,null,20,null,1364,87,null,null,null,null,null,null,null,null,null,null,1381,191,91]
["خراسان رضوی","خواف","کرمان",34,null,21,null,1365,34,"سلول مرجع افزودن نرم افزار",null,null,null,null,null,"+",null,null,null,1380,190,90]
["خراسان رضوی","داورزن","کرمانشاه",83,null,22,null,1366,83,false,null,null,null,null,null,null,null,null,null,1379,189,89]
["خراسان رضوی","درگز","کهگیلویه و بویراحمد",74,null,23,null,1367,74,null,null,null,null,null,null,"+",null,null,null,1378,188,88]
["خراسان رضوی","درود","گلستان",17,null,24,null,1368,17,"سلول مرجع نوع مقاله",null,null,null,null,null,null,null,null,null,1377,187,87]
["خراسان رضوی","دولت آباد ","گیلان",13,null,25,null,1369,13,true,null,null,null,null,null,"+",null,null,null,1376,186,86]
["خراسان رضوی","رباط سنگ","لرستان",66,null,26,null,1370,66,null,null,null,null,null,null,null,null,null,null,1375,185,85]
["خراسان رضوی","رشتخوار","مازندران",11,null,27,null,1371,11,"سلول مرجع نوع کتاب",null,null,null,null,null,"+",null,null,null,1374,184,84]
["خراسان رضوی","رضويه","مرکزی",86,null,28,null,1372,86,false,null,null,null,null,null,null,null,null,null,1373,183,83]
["خراسان رضوی","روداب","هرمزگان",76,null,29,null,1373,76,null,null,null,null,null,null,"+",null,null,null,1372,182,82]
["خراسان رضوی","ريوش","همدان",81,null,30,null,1374,81,"سلول مرجع نوع تدریس",null,null,null,null,null,null,null,null,null,1371,181,81]
["خراسان رضوی","سبزوار","یزد",35,null,31,null,1375,35,false,null,null,null,null,null,"+",null,null,null,1370,180,80]
["خراسان رضوی","سرخس",null,null,null,null,null,1376,null,null,null,null,null,null,null,null,null,null,null,1369,179,79]
["خراسان رضوی","سفيدسنگ",null,null,null,null,null,1377,null,"سلول مرجع نوع دوره آموزشی",null,null,null,null,null,"+",null,null,null,1368,178,78]
["خراسان رضوی","سلامي",null,null,null,null,null,1378,null,false,null,null,null,null,null,null,null,null,null,1367,177,77]
["خراسان رضوی","سلطان آباد",null,null,null,null,null,1379,null,null,null,null,null,null,null,"+",null,null,null,1366,176,76]
["خراسان رضوی","سنگان",null,null,null,null,null,1380,null,"سلول مرجع سطح زبان",null,null,null,null,null,null,null,null,null,1365,175,75]
["خراسان رضوی","شادمهر",null,null,null,null,null,1381,null,0,null,null,null,null,null,"+",null,null,null,1364,174,74]
["خراسان رضوی","شانديز",null,null,null,null,null,1382,null,null,null,null,null,null,null,null,null,null,null,1363,173,73]
["خراسان رضوی","ششتمد",null,null,null,null,null,1383,null,"سلول مرجع سابقه خدمتی1",null,null,null,null,null,null,null,null,null,1362,172,72]
["خراسان رضوی","شهرآباد",null,null,null,null,null,1384,null,false,null,null,null,null,null,null,null,null,null,1361,171,71]
["خراسان رضوی","شهرزو",null,null,null,null,null,1385,null,null,null,null,null,null,null,null,null,null,null,1360,170,70]
["خراسان رضوی","صالح آباد  ",null,null,null,null,null,1386,null,"سایز و نوشته این سلولها عوض نشود",null,null,null,null,null,null,null,null,null,1359,169,69]
["خراسان رضوی","طرقبه",null,null,null,null,null,1387,null,"صفحه 4",null,null,null,null,null,null,null,null,null,1358,168,68]
["خراسان رضوی","عشق آباد",null,null,null,null,null,1388,null,"صفحه بعد  >>",null,null,null,null,null,null,null,null,null,1357,167,67]
["خراسان رضوی","فرهادگرد",null,null,null,null,null,1389,null,null,null,null,null,null,null,null,null,null,null,1356,166,66]
["خراسان رضوی","فريمان",null,null,null,null,null,1390,null,"<<  صفحه قبل",null,null,null,null,null,null,null,null,null,1355,165,65]
["خراسان رضوی","فيروزه",null,null,null,null,null,1391,null,"صفحه 5",null,null,null,null,null,null,null,null,null,1354,164,64]
["خراسان رضوی","فيض آباد",null,null,null,null,null,1392,null,"صفحه بعد  >>",null,null,null,null,null,null,null,null,null,1353,163,63]
["خراسان رضوی","قاسم آباد",null,null,null,null,null,1393,null,null,null,null,null,null,null,null,null,null,null,1352,162,62]
["خراسان رضوی","قدمگاه",null,null,null,null,null,1394,null,"<<  صفحه قبل",null,null,null,null,null,null,null,null,null,1351,161,61]
["خراسان رضوی","قلندرآباد",null,null,null,null,null,1395,null,null,null,null,null,null,null,null,null,null,null,1350,160,60]
["خراسان رضوی","قوچان",null,null,null,null,null,1396,null,"صفحه 6",null,null,null,null,null,null,null,null,null,1349,159,59]
["خراسان رضوی","كاخك",null,null,null,null,null,1397,null,"<<  صفحه قبل",null,null,null,null,null,null,null,null,null,1348,158,58]
["خراسان رضوی","كاريز",null,null,null,null,null,1398,null,null,null,null,null,null,null,null,null,null,null,1347,157,57]
["خراسان رضوی","كاشمر",null,null,null,null,null,1399,null,"صفحه 3",null,null,null,null,null,null,null,null,null,1346,156,56]
["خراسان رضوی","كدكن",null,null,null,null,null,1400,null,"صفحه بعد  >>",null,null,null,null,null,null,null,null,null,1345,155,55]
["خراسان رضوی","كلات",null,null,null,null,null,null,null,null,null,null,null,null,null,null,null,null,null,null,154]
["خراسان رضوی","كندر",null,null,null,null,null,null,null,"<<  صفحه قبل",null,null,null,null,null,null,null,null,null,null,153]
["خراسان رضوی","گلمكان",null,null,null,null,null,null,null,null,null,null,null,null,null,null,null,null,null,null,152]
["خراسان رضوی","گناباد",null,null,null,null,null,null,null,null,null,null,null,null,null,null,null,null,null,null,151]
["خراسان رضوی","لطف آباد",null,null,null,null,null,null,null,"صفحه 2",null,null,null,null,null,null,null,null,null,null,150]
["خراسان رضوی","مزدآوند",null,null,null,null,null,null,null,"صفحه بعد  >>"]
["خراسان رضوی","مشهدريزه"]
["خراسان رضوی","ملك آباد",null,null,null,null,null,null,null,"<<  صفحه قبل"]
["خراسان رضوی","نشتيفان"]
["خراسان رضوی","نصر آباد"]
["خراسان رضوی","نقاب",null,null,null,null,null,null,null,"صفحه 1"]
["خراسان رضوی","نوخندان",null,null,null,null,null,null,null,"صفحه بعد  >>"]
["خراسان رضوی","نيشابور"]
["خراسان رضوی","نيل شهر",null,null,null,null,null,null,null,"<<  صفحه قبل"]
["خراسان رضوی","همت آباد"]
["خراسان رضوی","يونسي",null,null,null,null,null,null,null,"سلول مرجع سابقه خدمتی 2"]
["خراسان جنوبی","ارسك",null,null,null,null,null,null,null,false]
["خراسان جنوبی","اسديه",null,null,null,null,null,null,null,"سلول مرجع سابقه خدمتی 3"]
["خراسان جنوبی","اسفدن",null,null,null,null,null,null,null,false]
["خراسان جنوبی","اسلاميه",null,null,null,null,null,null,null,"سلول مرجع سابقه خدمتی 4"]
["خراسان جنوبی","آرين شهر",null,null,null,null,null,null,null,false]
["خراسان جنوبی","آيسك",null,null,null,null,null,null,null,"سلول مرجع سابقه خدمتی 5"]
["خراسان جنوبی","بشرويه",null,null,null,null,null,null,null,false]
["خراسان جنوبی","بيرجند",null,null,null,null,null,null,null,"سلول مرجع سابقه خدمتی 6"]
["خراسان جنوبی","حاجي آباد",null,null,null,null,null,null,null,false]
["خراسان جنوبی","خضري دشت بياض",null,null,null,null,null,null,null,"سلول مرجع نرم افزار 2"]
["خراسان جنوبی","خوسف",null,null,null,null,null,null,null,false]
["خراسان جنوبی","زهان",null,null,null,null,null,null,null,"سلول مرجع نرم افزار 3"]
["خراسان جنوبی","سرايان",null,null,null,null,null,null,null,true]
["خراسان جنوبی","سربيشه",null,null,null,null,null,null,null,"سلول مرجع نرم افزار 4"]
["خراسان جنوبی","سه قلعه",null,null,null,null,null,null,null,true]
["خراسان جنوبی","شوسف",null,null,null,null,null,null,null,"سلول مرجع نوع مقاله 2"]
["خراسان جنوبی","طبس مسينا",null,null,null,null,null,null,null,true]
["خراسان جنوبی","فردوس",null,null,null,null,null,null,null,"سلول مرجع نوع مقاله 3"]
["خراسان جنوبی","قائن",null,null,null,null,null,null,null,true]
["خراسان جنوبی","قهستان",null,null,null,null,null,null,null,"سلول مرجع نوع مقاله 4"]
["خراسان جنوبی","گزيك",null,null,null,null,null,null,null,true]
["خراسان جنوبی","محمد شهر",null,null,null,null,null,null,null,"سلول مرجع نوع تدریس 2"]
["خراسان جنوبی","مود",null,null,null,null,null,null,null,false]
["خراسان جنوبی","نهبندان",null,null,null,null,null,null,null,"سلول مرجع نوع تدریس 3"]
["خراسان جنوبی","نيمبلوك",null,null,null,null,null,null,null,true]
["خراسان شمالی","اسفراين",null,null,null,null,null,null,null,"سلول مرجع نوع تدریس 4"]
["خراسان شمالی","ايور",null,null,null,null,null,null,null,false]
["خراسان شمالی","آشخانه",null,null,null,null,null,null,null,"سلول مرجع نوع دوره آموزشی 2"]
["خراسان شمالی","بجنورد",null,null,null,null,null,null,null,false]
["خراسان شمالی","پيش قلعه",null,null,null,null,null,null,null,"سلول مرجع نوع دوره آموزشی 3"]
["خراسان شمالی","تيتكانلو",null,null,null,null,null,null,null,false]
["خراسان شمالی","جاجرم",null,null,null,null,null,null,null,"سلول مرجع نوع دوره آموزشی 4"]
["خراسان شمالی","حصارگرمخان",null,null,null,null,null,null,null,false]
["خراسان شمالی","درق"]
["خراسان شمالی","راز",null,null,null,null,null,null,null,"سلول مرجع مدرک زبان"]
["خراسان شمالی","سنخواست",null,null,null,null,null,null,null,false]
["خراسان شمالی","شوقان"]
["خراسان شمالی","شيروان",null,null,null,null,null,null,null,"سلول مرجع کار با کامپیوتر"]
["خراسان شمالی","صفي آباد",null,null,null,null,null,null,null,0]
["خراسان شمالی","فاروج",null,null,null,null,null,null,null,"سلول مرجع سطح کار با کامپیوتر"]
["خراسان شمالی","قاضي",null,null,null,null,null,null,null,false]
["خراسان شمالی","گرمه",null,null,null,null,null,null,null,"سلول مرجع گواهینامه موتور"]
["خراسان شمالی","لوجلي",null,null,null,null,null,null,null,false]
["اردبیل","اردبیل",null,null,null,null,null,null,null,"سلول مرجع گواهینامه ماشین"]
["اردبیل","اصلاندوز",null,null,null,null,null,null,null,false]
["اردبیل","آبي بيگلو",null,null,null,null,null,null,null,"سلول مرجع گواهینامه ویژه"]
["اردبیل","بيله سوار",null,null,null,null,null,null,null,false]
["اردبیل","پارس آباد",null,null,null,null,null,null,null,"سلول مرجع سابقه بازداشت و زندان"]
["اردبیل","تازه كند",null,null,null,null,null,null,null,false]
["اردبیل","تازه كندانگوت",null,null,null,null,null,null,null,"سلول مرجع آشنا در صنعت برق"]
["اردبیل","جعفرآباد",null,null,null,null,null,null,null,false]
["اردبیل","خلخال",null,null,null,null,null,null,null,"سلول مرجع مذهب"]
["اردبیل","رضي",null,null,null,null,null,null,null,0]
["اردبیل","سرعين",null,null,null,null,null,null,null,"سلول مرجع شماره شناسنامه برابر کد ملی"]
["اردبیل","عنبران",null,null,null,null,null,null,null,true]
["اردبیل","فخرآباد",null,null,null,null,null,null,null,"سلول بررسی تاریخ شروع و پایان فعالیت"]
["اردبیل","كلور",null,null,null,null,null,null,null,{"$f":"IF(OR(AND(Sheet4!K11<Sheet4!J11,Sheet4!K11<>\"\"),AND(Sheet4!K13<Sheet4!J13,Sheet4!K13<>\"\"),AND(Sheet4!K15<Sheet4!J15,Sheet4!K15<>\"\"),AND(Sheet4!K17<Sheet4!J17,Sheet4!K17<>\"\"),AND(Sheet4!K19<Sheet4!J19,Sheet4!K19<>\"\"),AND(Sheet4!K21<Sheet4!J21,Sheet4!K21<>\"\"),AND(Sheet4!K23<Sheet4!J23,Sheet4!K23<>\"\")),FALSE,TRUE)","v":true}]
["اردبیل","كوراييم",null,null,null,null,null,null,null,"سلول مرجع متقاضی انتقال"]
["اردبیل","گرمي",null,null,null,null,null,null,null,{"$f":"IF(Sheet5!H9<>\"\",1,0)","v":0}]
["اردبیل","گيوي",null,null,null,null,null,null,null,"سلول مرجع متقاضی مشاغل پیمانکاری"]
["اردبیل","لاهرود",null,null,null,null,null,null,null,{"$f":"IF(Sheet6!H9<>\"\",1,0)","v":0}]
["اردبیل","مرادلو",null,null,null,null,null,null,null,"سلول مرجع راهنمای فوق دیپلم (دوتا خونه بعدی)"]
["اردبیل","مشگين شهر",null,null,null,null,null,null,null,{"$f":"ISBLANK(Sheet2!H9)","v":true}]
["اردبیل","نمين",null,null,null,null,null,null,null,"سلول مرجع بررسی تاریخ شروع و پایان تحصیل"]
["اردبیل","نير",null,null,null,null,null,null,null,{"$f":"IF(OR(AND(Sheet2!R9<=Sheet2!Q9,Sheet2!R9<>\"\"),AND(Sheet2!R11<=Sheet2!Q11,Sheet2!R11<>\"\"),AND(Sheet2!R13<=Sheet2!Q13,Sheet2!R13<>\"\"),AND(Sheet2!R15<=Sheet2!Q15,Sheet2!R15<>\"\"),AND(Sheet2!R17<=Sheet2!Q17,Sheet2!R17<>\"\")),FALSE,TRUE)","v":true}]
["اردبیل","هشتجين"]
["اردبیل","هير"]
["اصفهان","ابريشم"]
["اصفهان","ابوزيدآباد"]
["اصفهان","اردستان"]
["اصفهان","اژيه"]
["اصفهان","اصفهان"]
["اصفهان","افوس"]
["اصفهان","انارك"]
["اصفهان","ايمانشهر"]
["اصفهان","آران وبيدگل"]
["اصفهان","بادرود"]
["اصفهان","باغ بهادران"]
["اصفهان","بافران"]
["اصفهان","برزك"]
["اصفهان","برف انبار"]
["اصفهان","بوئين ومياندشت"]
["اصفهان","بهاران شهر"]
["اصفهان","بهارستان"]
["اصفهان","پيربكران"]
["اصفهان","تودشك"]
["اصفهان","تيران"]
["اصفهان","جندق"]
["اصفهان","جوزدان"]
["اصفهان","جوشقان وكامو"]
["اصفهان","چادگان"]
["اصفهان","چرمهين"]
["اصفهان","چمگردان"]
["اصفهان","حبيب آباد"]
["اصفهان","حسن آباد"]
["اصفهان","حنا"]
["اصفهان","خالدآباد"]
["اصفهان","خميني شهر"]
["اصفهان","خوانسار"]
["اصفهان","خور"]
["اصفهان","خوراسگان"]
["اصفهان","خورزوق"]
["اصفهان","داران"]
["اصفهان","دامنه"]
["اصفهان","درچه پياز"]
["اصفهان","دستگرد"]
["اصفهان","دولت آباد"]
["اصفهان","دهاقان"]
["اصفهان","دهق"]
["اصفهان","ديزيچه"]
["اصفهان","رزوه"]
["اصفهان","رضوانشهر"]
["اصفهان","زاينده رود"]
["اصفهان","زرين شهر"]
["اصفهان","زواره"]
["اصفهان","زيباشهر"]
["اصفهان","سده لنجان"]
["اصفهان","سفيدشهر"]
["اصفهان","سگزي"]
["اصفهان","سميرم"]
["اصفهان","شاپورآباد"]
["اصفهان","شاهين شهر"]
["اصفهان","شهرضا"]
["اصفهان","طالخونچه"]
["اصفهان","عسگران"]
["اصفهان","علويچه"]
["اصفهان","فرخي"]
["اصفهان","فريدونشهر"]
["اصفهان","فلاورجان"]
["اصفهان","فولادشهر"]
["اصفهان","قمصر"]
["اصفهان","قهجاورستان"]
["اصفهان","قهدريجان"]
["اصفهان","كاشان"]
["اصفهان","كركوند"]
["اصفهان","كليشادوسودرجان"]
["اصفهان","كمشچه"]
["اصفهان","كمه"]
["اصفهان","كوشك"]
["اصفهان","كوهپايه"]
["اصفهان","كهريزسنگ"]
["اصفهان","گرگاب"]
["اصفهان","گزبرخوار"]
["اصفهان","گلپايگان"]
["اصفهان","گلدشت"]
["اصفهان","گلشن"]
["اصفهان","گلشهر"]
["اصفهان","گوگد"]
["اصفهان","لاي بيد"]
["اصفهان","مباركه"]
["اصفهان","محمدآباد"]
["اصفهان","مشكات"]
["اصفهان","منظريه"]
["اصفهان","مهاباد"]
["اصفهان","ميمه"]
["اصفهان","نائين"]
["اصفهان","نجف آباد"]
["اصفهان","نصرآباد"]
["اصفهان","نطنز"]
["اصفهان","نوش آباد"]
["اصفهان","نياسر"]
["اصفهان","نيك آباد"]
["اصفهان","ورزنه"]
["اصفهان","ورنامخواست"]
["اصفهان","وزوان"]
["اصفهان","ونك"]
["اصفهان","هرند"]
["البرز","اشتهارد"]
["البرز","آسارا"]
["البرز","تنكمان"]
["البرز","چهارباغ"]
["البرز","سيف آباد"]
["البرز","شهرجديدهشتگرد"]
["البرز","طالقان"]
["البرز","كرج"]
["البرز","كمال شهر"]
["البرز","كوهسار"]
["البرز","گرمدره"]
["البرز","ماهدشت"]
["البرز","محمدشهر"]
["البرز","مشكين دشت"]
["البرز","نظرآباد"]
["البرز","هشتگرد"]
["ایلام","اركواز"]
["ایلام","ایلام"]
["ایلام","ايوان"]
["ایلام","آبدانان"]
["ایلام","آسمان آباد"]
["ایلام","بدره"]
["ایلام","پهله"]
["ایلام","توحيد"]
["ایلام","چوار"]
["ایلام","دره شهر"]
["ایلام","دلگشا"]
["ایلام","دهلران"]
["ایلام","زرنه"]
["ایلام","سراب باغ"]
["ایلام","سرابله"]
["ایلام","صالح آباد"]
["ایلام","لومار"]
["ایلام","مورموري"]
["ایلام","موسيان"]
["ایلام","مهران"]
["ایلام","ميمه "]
["آذربایجان شرقی","اسكو"]
["آذربایجان شرقی","اهر"]
["آذربایجان شرقی","ايلخچي"]
["آذربایجان شرقی","آبش احمد"]
["آذربایجان شرقی","آذرشهر"]
["آذربایجان شرقی","آقكند"]
["آذربایجان شرقی","باسمنج"]
["آذربایجان شرقی","بخشايش"]
["آذربایجان شرقی","بستان آباد"]
["آذربایجان شرقی","بناب"]
["آذربایجان شرقی","بناب جديد"]
["آذربایجان شرقی","تبريز"]
["آذربایجان شرقی","ترك"]
["آذربایجان شرقی","تركمانچاي"]
["آذربایجان شرقی","تسوج"]
["آذربایجان شرقی","تيكمه داش"]
["آذربایجان شرقی","جلفا"]
["آذربایجان شرقی","خاروانا"]
["آذربایجان شرقی","خامنه"]
["آذربایجان شرقی","خراجو"]
["آذربایجان شرقی","خسروشهر"]
["آذربایجان شرقی","خمارلو"]
["آذربایجان شرقی","خواجه"]
["آذربایجان شرقی","دوزدوزان"]
["آذربایجان شرقی","زرنق"]
["آذربایجان شرقی","زنوز"]
["آذربایجان شرقی","سراب"]
["آذربایجان شرقی","سردرود"]
["آذربایجان شرقی","سيس"]
["آذربایجان شرقی","سيه رود"]
["آذربایجان شرقی","شبستر"]
["آذربایجان شرقی","شربيان"]
["آذربایجان شرقی","شرفخانه"]
["آذربایجان شرقی","شندآباد"]
["آذربایجان شرقی","شهرجديدسهند"]
["آذربایجان شرقی","صوفيان"]
["آذربایجان شرقی","عجب شير"]
["آذربایجان شرقی","قره آغاج"]
["آذربایجان شرقی","كشكسراي"]
["آذربایجان شرقی","كلوانق"]
["آذربایجان شرقی","كليبر"]
["آذربایجان شرقی","كوزه كنان"]
["آذربایجان شرقی","گوگان"]
["آذربایجان شرقی","ليلان"]
["آذربایجان شرقی","مراغه"]
["آذربایجان شرقی","مرند"]
["آذربایجان شرقی","ملكان"]
["آذربایجان شرقی","ممقان"]
["آذربایجان شرقی","مهربان"]
["آذربایجان شرقی","ميانه"]
["آذربایجان شرقی","نظركهريزي"]
["آذربایجان شرقی","وايقان"]
["آذربایجان شرقی","ورزقان"]
["آذربایجان شرقی","هاديشهر"]
["آذربایجان شرقی","هريس"]
["آذربایجان شرقی","هشترود"]
["آذربایجان شرقی","هوراند"]
["آذربایجان شرقی","يامچي"]
["آذربایجان غربی","اروميه"]
["آذربایجان غربی","اشنويه"]
["آذربایجان غربی","ايواوغلي"]
["آذربایجان غربی","آواجيق"]
["آذربایجان غربی","باروق"]
["آذربایجان غربی","بازرگان"]
["آذربایجان غربی","بوكان"]
["آذربایجان غربی","پلدشت"]
["آذربایجان غربی","پيرانشهر"]
["آذربایجان غربی","تازه شهر"]
["آذربایجان غربی","تكاب"]
["آذربایجان غربی","چهاربرج"]
["آذربایجان غربی","خليفان"]
["آذربایجان غربی","خوي"]
["آذربایجان غربی","ديزج ديز"]
["آذربایجان غربی","ربط"]
["آذربایجان غربی","سردشت"]
["آذربایجان غربی","سرو"]
["آذربایجان غربی","سلماس"]
["آذربایجان غربی","سيلوانه"]
["آذربایجان غربی","سيمينه"]
["آذربایجان غربی","سيه چشمه"]
["آذربایجان غربی","شاهين دژ"]
["آذربایجان غربی","شوط"]
["آذربایجان غربی","فيرورق"]
["آذربایجان غربی","قره ضياءالدين"]
["آذربایجان غربی","قطور"]
["آذربایجان غربی","قوشچي"]
["آذربایجان غربی","كشاورز"]
["آذربایجان غربی","گردكشانه"]
["آذربایجان غربی","ماكو"]
["آذربایجان غربی","محمديار"]
["آذربایجان غربی","محمودآباد"]
["آذربایجان غربی","مهاباد "]
["آذربایجان غربی","مياندوآب"]
["آذربایجان غربی","ميرآباد"]
["آذربایجان غربی","نالوس"]
["آذربایجان غربی","نقده"]
["آذربایجان غربی","نوشين"]
["بوشهر","امام حسن"]
["بوشهر","انارستان"]
["بوشهر","اهرم"]
["بوشهر","آبپخش"]
["بوشهر","آبدان"]
["بوشهر","برازجان"]
["بوشهر","بردخون"]
["بوشهر","بردستان"]
["بوشهر","بندردير"]
["بوشهر","بندرديلم"]
["بوشهر","بندرريگ"]
["بوشهر","بندركنگان"]
["بوشهر","بندرگناوه"]
["بوشهر","بنك"]
["بوشهر","بوشهر"]
["بوشهر","تنگ ارم"]
["بوشهر","جم"]
["بوشهر","چغادك"]
["بوشهر","خارك"]
["بوشهر","خورموج"]
["بوشهر","دالكي"]
["بوشهر","دلوار"]
["بوشهر","ريز"]
["بوشهر","سعدآباد"]
["بوشهر","سيراف"]
["بوشهر","شبانكاره"]
["بوشهر","شنبه"]
["بوشهر","عسلويه"]
["بوشهر","كاكي"]
["بوشهر","كلمه"]
["بوشهر","نخل تقي"]
["بوشهر","وحدتيه"]
["تهران","ارجمند"]
["تهران","اسلامشهر"]
["تهران","انديشه"]
["تهران","آبسرد"]
["تهران","آبعلي"]
["تهران","باغستان"]
["تهران","باقرشهر"]
["تهران","بومهن"]
["تهران","پاكدشت"]
["تهران","پرديس"]
["تهران","پيشوا"]
["تهران","تجريش"]
["تهران","تهران"]
["تهران","جوادآباد"]
["تهران","چهاردانگه"]
["تهران","حسن آباد "]
["تهران","دماوند"]
["تهران","رباط كريم"]
["تهران","رودهن"]
["تهران","ري"]
["تهران","شاهدشهر"]
["تهران","شريف آباد"]
["تهران","شهريار"]
["تهران","صالح آباد "]
["تهران","صباشهر"]
["تهران","صفادشت"]
["تهران","فردوسيه"]
["تهران","فرون آباد"]
["تهران","فشم"]
["تهران","فيروزكوه"]
["تهران","قدس"]
["تهران","قرچك"]
["تهران","كهريزك"]
["تهران","كيلان"]
["تهران","گلستان"]
["تهران","لواسان"]
["تهران","ملارد"]
["تهران","نسيم شهر"]
["تهران","نصيرآباد"]
["تهران","وحيديه"]
["تهران","ورامين"]
["چهارمحال و بختیاری","اردل"]
["چهارمحال و بختیاری","آلوني"]
["چهارمحال و بختیاری","باباحيدر"]
["چهارمحال و بختیاری","بروجن"]
["چهارمحال و بختیاری","بلداجي"]
["چهارمحال و بختیاری","بن"]
["چهارمحال و بختیاری","جونقان"]
["چهارمحال و بختیاری","چلگرد"]
["چهارمحال و بختیاری","سامان"]
["چهارمحال و بختیاری","سفيددشت"]
["چهارمحال و بختیاری","سودجان"]
["چهارمحال و بختیاری","سورشجان"]
["چهارمحال و بختیاری","شلمزار"]
["چهارمحال و بختیاری","شهركرد"]
["چهارمحال و بختیاری","طاقانك"]
["چهارمحال و بختیاری","فارسان"]
["چهارمحال و بختیاری","فرادنبه"]
["چهارمحال و بختیاری","فرخ شهر"]
["چهارمحال و بختیاری","كيان"]
["چهارمحال و بختیاری","گندمان"]
["چهارمحال و بختیاری","گهرو"]
["چهارمحال و بختیاری","لردگان"]
["چهارمحال و بختیاری","مال خليفه"]
["چهارمحال و بختیاری","ناغان"]
["چهارمحال و بختیاری","نافچ"]
["چهارمحال و بختیاری","نقنه"]
["چهارمحال و بختیاری","هفشجان"]
["خوزستان","اروندكنار"]
["خوزستان","الوان"]
["خوزستان","اميديه"]
["خوزستان","انديمشك"]
["خوزستان","اهواز"]
["خوزستان","ايذه"]
["خوزستان","آبادان"]
["خوزستان","آغاجاري"]
["خوزستان","باغ ملك"]
["خوزستان","بستان"]
["خوزستان","بندرامام خميني"]
["خوزستان","بندرماهشهر"]
["خوزستان","بهبهان"]
["خوزستان","تركالكي"]
["خوزستان","جايزان"]
["خوزستان","جنت مكان"]
["خوزستان","چغاميش"]
["خوزستان","چمران"]
["خوزستان","چوئبده"]
["خوزستان","حر"]
["خوزستان","حسينيه"]
["خوزستان","حمزه"]
["خوزستان","حميديه"]
["خوزستان","خرمشهر"]
["خوزستان","دارخوين"]
["خوزستان","دزآب"]
["خوزستان","دزفول"]
["خوزستان","دهدز"]
["خوزستان","رامشير"]
["خوزستان","رامهرمز"]
["خوزستان","رفيع"]
["خوزستان","زهره"]
["خوزستان","سالند"]
["خوزستان","سردشت "]
["خوزستان","سماله"]
["خوزستان","سوسنگرد"]
["خوزستان","شادگان"]
["خوزستان","شاوور"]
["خوزستان","شرافت"]
["خوزستان","شوش"]
["خوزستان","شوشتر"]
["خوزستان","شيبان"]
["خوزستان","صالح شهر"]
["خوزستان","صالح مشطط"]
["خوزستان","صفي آباد "]
["خوزستان","صيدون"]
["خوزستان","قلعه تل"]
["خوزستان","قلعه خواجه"]
["خوزستان","گتوند"]
["خوزستان","گوريه"]
["خوزستان","لالي"]
["خوزستان","مسجدسليمان"]
["خوزستان","مشراگه"]
["خوزستان","مقاومت"]
["خوزستان","ملاثاني"]
["خوزستان","ميانرود"]
["خوزستان","ميداود"]
["خوزستان","مينوشهر"]
["خوزستان","ويس"]
["خوزستان","هفتگل"]
["خوزستان","هنديجان"]
["خوزستان","هويزه"]
["زنجان","ابهر"]
["زنجان","ارمغانخانه"]
["زنجان","آب بر"]
["زنجان","چورزق"]
["زنجان","حلب"]
["زنجان","خرمدره"]
["زنجان","دندي"]
["زنجان","زرين آباد"]
["زنجان","زرين رود"]
["زنجان","زنجان"]
["زنجان","سجاس"]
["زنجان","سلطانيه"]
["زنجان","سهرورد"]
["زنجان","صائين قلعه"]
["زنجان","قيدار"]
["زنجان","گرماب"]
["زنجان","ماه نشان"]
["زنجان","هيدج"]
["سمنان","اميريه"]
["سمنان","ايوانكي"]
["سمنان","آرادان"]
["سمنان","بسطام"]
["سمنان","بيارجمند"]
["سمنان","دامغان"]
["سمنان","درجزين"]
["سمنان","ديباج"]
["سمنان","سرخه"]
["سمنان","سمنان"]
["سمنان","شاهرود"]
["سمنان","شهميرزاد"]
["سمنان","كلاته خيج"]
["سمنان","گرمسار"]
["سمنان","مجن"]
["سمنان","مهدي شهر"]
["سمنان","ميامي"]
["سیستان و بلوچستان","اديمي"]
["سیستان و بلوچستان","اسپكه"]
["سیستان و بلوچستان","ايرانشهر"]
["سیستان و بلوچستان","بزمان"]
["سیستان و بلوچستان","بمپور"]
["سیستان و بلوچستان","بنت"]
["سیستان و بلوچستان","بنجار"]
["سیستان و بلوچستان","پيشين"]
["سیستان و بلوچستان","جالق"]
["سیستان و بلوچستان","چاه بهار"]
["سیستان و بلوچستان","خاش"]
["سیستان و بلوچستان","دوست محمد"]
["سیستان و بلوچستان","راسك"]
["سیستان و بلوچستان","زابل"]
["سیستان و بلوچستان","زابلي"]
["سیستان و بلوچستان","زاهدان"]
["سیستان و بلوچستان","زرآباد"]
["سیستان و بلوچستان","زهك"]
["سیستان و بلوچستان","سراوان"]
["سیستان و بلوچستان","سرباز"]
["سیستان و بلوچستان","سوران"]
["سیستان و بلوچستان","سيركان"]
["سیستان و بلوچستان","علي اكبر"]
["سیستان و بلوچستان","فنوج"]
["سیستان و بلوچستان","قصرقند"]
["سیستان و بلوچستان","كنارك"]
["سیستان و بلوچستان","گشت"]
["سیستان و بلوچستان","گلمورتي"]
["سیستان و بلوچستان","محمدان"]
["سیستان و بلوچستان","محمد آباد"]
["سیستان و بلوچستان","محمدي"]
["سیستان و بلوچستان","ميرجاوه"]
["سیستان و بلوچستان","نصرت آباد"]
["سیستان و بلوچستان","نگور"]
["سیستان و بلوچستان","نوك آباد"]
["سیستان و بلوچستان","نيك شهر"]
["سیستان و بلوچستان","هيدوج"]
["فارس","اردكان"]
["فارس","ارسنجان"]
["فارس","استهبان"]
["فارس","اسير"]
["فارس","اشكنان"]
["فارس","افزر"]
["فارس","اقليد"]
["فارس","امام شهر"]
["فارس","اوز"]
["فارس","اهل"]
["فارس","ايج"]
["فارس","ایزدخواست"]
["فارس","آباده"]
["فارس","آباده طشك"]
["فارس","باب انار"]
["فارس","بالاده"]
["فارس","بنارويه"]
["فارس","بوانات"]
["فارس","بهمن"]
["فارس","بيرم"]
["فارس","بيضا"]
["فارس","جنت شهر"]
["فارس","جويم"]
["فارس","جهرم"]
["فارس","حاجي آباد "]
["فارس","حسامي"]
["فارس","حسن آباد  "]
["فارس","خانه زنيان"]
["فارس","خاوران"]
["فارس","خرامه"]
["فارس","خشت"]
["فارس","خنج"]
["فارس","خور "]
["فارس","خومه زار"]
["فارس","داراب"]
["فارس","داريان"]
["فارس","دبيران"]
["فارس","دژكرد"]
["فارس","دوبرجي"]
["فارس","دوزه"]
["فارس","دهرم"]
["فارس","رامجرد"]
["فارس","رونيز"]
["فارس","زاهدشهر"]
["فارس","زرقان"]
["فارس","سده"]
["فارس","سروستان"]
["فارس","سعادت شهر"]
["فارس","سورمق"]
["فارس","سيدان"]
["فارس","ششده"]
["فارس","شهر جديد صدرا"]
["فارس","شهرپير"]
["فارس","شيراز"]
["فارس","صغاد"]
["فارس","صفاشهر"]
["فارس","علامرودشت"]
["فارس","عمادده"]
["فارس","فدامي"]
["فارس","فراشبند"]
["فارس","فسا"]
["فارس","فيروزآباد"]
["فارس","قادرآباد"]
["فارس","قائميه"]
["فارس","قطب آباد"]
["فارس","قطرويه"]
["فارس","قير"]
["فارس","كارزين"]
["فارس","كازرون"]
["فارس","كامفيروز"]
["فارس","كره اي"]
["فارس","كنارتخته"]
["فارس","كوار"]
["فارس","كوهنجان"]
["فارس","گراش"]
["فارس","گله دار"]
["فارس","لار"]
["فارس","لامرد"]
["فارس","لپوئي"]
["فارس","لطيفي"]
["فارس","مبارك آباد"]
["فارس","مرودشت"]
["فارس","مشكان"]
["فارس","مصيري"]
["فارس","مهر"]
["فارس","ميمند"]
["فارس","نوبندگان"]
["فارس","نوجين"]
["فارس","نودان"]
["فارس","نورآباد"]
["فارس","ني ريز"]
["فارس","وراوي"]
["فارس","هماشهر"]
["قزوین","ارداق"]
["قزوین","اسفرورين"]
["قزوین","اقباليه"]
["قزوین","الوند"]
["قزوین","آبگرم"]
["قزوین","آبيك"]
["قزوین","آوج"]
["قزوین","بوئين زهرا"]
["قزوین","بيدستان"]
["قزوین","تاكستان"]
["قزوین","خاكعلي"]
["قزوین","خرمدشت"]
["قزوین","دانسفهان"]
["قزوین","رازميان"]
["قزوین","سگزآباد"]
["قزوین","سيردان"]
["قزوین","شال"]
["قزوین","شريفيه"]
["قزوین","ضياءآباد"]
["قزوین","قزوین"]
["قزوین","كوهين"]
["قزوین","محمديه"]
["قزوین","محمودآبادنمونه"]
["قزوین","معلم كلايه"]
["قزوین","نرجه"]
["قم","جعفريه"]
["قم","دستجرد"]
["قم","سلفچگان"]
["قم","قم"]
["قم","قنوات"]
["قم","كهك"]
["کردستان","آرمرده"]
["کردستان","بابارشاني"]
["کردستان","بانه"]
["کردستان","بلبان آباد"]
["کردستان","بوئين سفلي"]
["کردستان","بيجار"]
["کردستان","چناره"]
["کردستان","دزج"]
["کردستان","دلبران"]
["کردستان","دهگلان"]
["کردستان","ديواندره"]
["کردستان","زرينه"]
["کردستان","سروآباد"]
["کردستان","سريش آباد"]
["کردستان","سقز"]
["کردستان","سنندج"]
["کردستان","شويشه"]
["کردستان","صاحب"]
["کردستان","قروه"]
["کردستان","كامياران"]
["کردستان","كاني دينار"]
["کردستان","كاني سور"]
["کردستان","مريوان"]
["کردستان","موچش"]
["کردستان","ياسوكند"]
["کرمان","اختيارآباد"]
["کرمان","ارزوئيه"]
["کرمان","امين شهر"]
["کرمان","انار"]
["کرمان","اندوهجرد"]
["کرمان","باغين"]
["کرمان","بافت"]
["کرمان","بردسير"]
["کرمان","بروات"]
["کرمان","بزنجان"]
["کرمان","بم"]
["کرمان","بهرمان"]
["کرمان","پاريز"]
["کرمان","جبالبارز"]
["کرمان","جوپار"]
["کرمان","جوزم"]
["کرمان","جيرفت"]
["کرمان","چترود"]
["کرمان","خاتون آباد"]
["کرمان","خانوك"]
["کرمان","خورسند"]
["کرمان","درب بهشت"]
["کرمان","دوساري"]
["کرمان","دهج"]
["کرمان","رابر"]
["کرمان","راور"]
["کرمان","راين"]
["کرمان","رفسنجان"]
["کرمان","رودبار"]
["کرمان","ريحان شهر"]
["کرمان","زرند"]
["کرمان","زنگي آباد"]
["کرمان","زيدآباد"]
["کرمان","سرچشمه"]
["کرمان","سيرجان"]
["کرمان","شهداد"]
["کرمان","شهربابك"]
["کرمان","صفائيه"]
["کرمان","عنبرآباد"]
["کرمان","فارياب"]
["کرمان","فهرج"]
["کرمان","قلعه گنج"]
["کرمان","كاظم آباد"]
["کرمان","کرمان"]
["کرمان","كشكوئيه"]
["کرمان","كوهبنان"]
["کرمان","كهنوج"]
["کرمان","كيانشهر"]
["کرمان","گلباف"]
["کرمان","گلزار"]
["کرمان","لاله زار"]
["کرمان","ماهان"]
["کرمان","محمد آباد "]
["کرمان","محي آباد"]
["کرمان","مردهك"]
["کرمان","منوجان"]
["کرمان","نجف شهر"]
["کرمان","نرماشير"]
["کرمان","نظام شهر"]
["کرمان","نگار"]
["کرمان","نودژ"]
["کرمان","هجدك"]
["کرمان","هماشهر "]
["کرمان","یزدان شهر"]
["کرمانشاه","ازگله"]
["کرمانشاه","اسلام آبادغرب"]
["کرمانشاه","باينگان"]
["کرمانشاه","بيستون"]
["کرمانشاه","پاوه"]
["کرمانشاه","تازه آباد"]
["کرمانشاه","جوانرود"]
["کرمانشاه","حميل"]
["کرمانشاه","رباط"]
["کرمانشاه","روانسر"]
["کرمانشاه","سرپل ذهاب"]
["کرمانشاه","سرمست"]
["کرمانشاه","سطر"]
["کرمانشاه","سنقر"]
["کرمانشاه","سومار"]
["کرمانشاه","شاهو"]
["کرمانشاه","صحنه"]
["کرمانشاه","قصرشيرين"]
["کرمانشاه","کرمانشاه"]
["کرمانشاه","كرندغرب"]
["کرمانشاه","كنگاور"]
["کرمانشاه","كوزران"]
["کرمانشاه","گهواره"]
["کرمانشاه","گیلانغرب"]
["کرمانشاه","ميان راهان"]
["کرمانشاه","نودشه"]
["کرمانشاه","نوسود"]
["کرمانشاه","هرسين"]
["کرمانشاه","هلشي"]
["کهکیلویه و بویراحمد","باشت"]
["کهکیلویه و بویراحمد","پاتاوه"]
["کهکیلویه و بویراحمد","چرام"]
["کهکیلویه و بویراحمد","چيتاب"]
["کهکیلویه و بویراحمد","دوگنبدان"]
["کهکیلویه و بویراحمد","دهدشت"]
["کهکیلویه و بویراحمد","ديشموك"]
["کهکیلویه و بویراحمد","سوق"]
["کهکیلویه و بویراحمد","سي سخت"]
["کهکیلویه و بویراحمد","قلعه رئيسي"]
["کهکیلویه و بویراحمد","گراب سفلي"]
["کهکیلویه و بویراحمد","لنده"]
["کهکیلویه و بویراحمد","ليكك"]
["کهکیلویه و بویراحمد","مادوان"]
["کهکیلویه و بویراحمد","مارگون"]
["کهکیلویه و بویراحمد","ياسوج"]
["گلستان","انبارآلوم"]
["گلستان","اينچه برون"]
["گلستان","آزادشهر"]
["گلستان","آق قلا"]
["گلستان","بندرگز"]
["گلستان","تركمن"]
["گلستان","جلين"]
["گلستان","خان ببين"]
["گلستان","دلند"]
["گلستان","راميان"]
["گلستان","سرخنكلاته"]
["گلستان","سيمين شهر"]
["گلستان","علي آباد"]
["گلستان","فاضل آباد"]
["گلستان","كردكوي"]
["گلستان","كلاله"]
["گلستان","گاليكش"]
["گلستان","گرگان"]
["گلستان","گميش تپه"]
["گلستان","گنبد كاووس"]
["گلستان","مراوه تپه"]
["گلستان","مينودشت"]
["گلستان","نگين شهر"]
["گلستان","نوده خاندوز"]
["گلستان","نوكنده"]
["گیلان","احمدسرگوراب"]
["گیلان","اسالم"]
["گیلان","اطاقور"]
["گیلان","املش"]
["گیلان","آستارا"]
["گیلان","آستانه اشرفيه"]
["گیلان","بازارجمعه"]
["گیلان","بره سر"]
["گیلان","بندرانزلي"]
["گیلان","پره سر"]
["گیلان","توتكابن"]
["گیلان","جيرنده"]
["گیلان","چابكسر"]
["گیلان","چاف وچمخاله"]
["گیلان","چوبر"]
["گیلان","حويق"]
["گیلان","خشكبيجار"]
["گیلان","خمام"]
["گیلان","ديلمان"]
["گیلان","رانكوه"]
["گیلان","رحيم آباد"]
["گیلان","رستم آباد"]
["گیلان","رشت"]
["گیلان","رضوانشهر "]
["گیلان","رودبار "]
["گیلان","رودبنه"]
["گیلان","رودسر"]
["گیلان","سنگر"]
["گیلان","سياهكل"]
["گیلان","شفت"]
["گیلان","شلمان"]
["گیلان","صومعه سرا"]
["گیلان","فومن"]
["گیلان","كلاچاي"]
["گیلان","كوچصفهان"]
["گیلان","كومله"]
["گیلان","كياشهر"]
["گیلان","گوراب زرميخ"]
["گیلان","لاهيجان"]
["گیلان","لشت نشاء"]
["گیلان","لنگرود"]
["گیلان","لوشان"]
["گیلان","لولمان"]
["گیلان","لوندويل"]
["گیلان","ليسار"]
["گیلان","ماسال"]
["گیلان","ماسوله"]
["گیلان","مرجقل"]
["گیلان","منجيل"]
["گیلان","واجارگاه"]
["گیلان","هشتپر"]
["لرستان","ازنا"]
["لرستان","اشترينان"]
["لرستان","الشتر"]
["لرستان","اليگودرز"]
["لرستان","بروجرد"]
["لرستان","پلدختر"]
["لرستان","چالانچولان"]
["لرستان","چغلوندي"]
["لرستان","چقابل"]
["لرستان","خرم آباد"]
["لرستان","درب گنبد"]
["لرستان","دورود"]
["لرستان","زاغه"]
["لرستان","سپيددشت"]
["لرستان","سراب دوره"]
["لرستان","شول آباد"]
["لرستان","فيروز آباد"]
["لرستان","كوناني"]
["لرستان","كوهدشت"]
["لرستان","گراب"]
["لرستان","معمولان"]
["لرستان","مؤمن آباد"]
["لرستان","نور آباد"]
["لرستان","ويسيان"]
["لرستان","هفت چشمه"]
["مازندران","اميركلا"]
["مازندران","ایزدشهر"]
["مازندران","آلاشت"]
["مازندران","آمل"]
["مازندران","بابل"]
["مازندران","بابلسر"]
["مازندران","بلده"]
["مازندران","بهشهر"]
["مازندران","بهنمير"]
["مازندران","پل سفيد"]
["مازندران","پول"]
["مازندران","تنكابن"]
["مازندران","جويبار"]
["مازندران","چالوس"]
["مازندران","چمستان"]
["مازندران","خرم آباد "]
["مازندران","خليل شهر"]
["مازندران","خوش رودپي"]
["مازندران","دابودشت"]
["مازندران","رامسر"]
["مازندران","رستمكلا"]
["مازندران","رويان"]
["مازندران","رينه"]
["مازندران","زرگر محله"]
["مازندران","زيرآب"]
["مازندران","ساري"]
["مازندران","سرخرود"]
["مازندران","سلمان شهر"]
["مازندران","سورك"]
["مازندران","شيرگاه"]
["مازندران","شيرود"]
["مازندران","عباس آباد"]
["مازندران","فريدونكنار"]
["مازندران","فريم"]
["مازندران","قائم شهر"]
["مازندران","كتالم وسادات شهر"]
["مازندران","كلارآباد"]
["مازندران","كلاردشت"]
["مازندران","كله بست"]
["مازندران","كوهي خيل"]
["مازندران","كياسر"]
["مازندران","كياكلا"]
["مازندران","گتاب"]
["مازندران","گزنك"]
["مازندران","گلوگاه"]
["مازندران","محمود آباد"]
["مازندران","مرزن آباد"]
["مازندران","مرزيكلا"]
["مازندران","نشتارود"]
["مازندران","نكا"]
["مازندران","نور"]
["مازندران","نوشهر"]
["مرکزی","اراك"]
["مرکزی","آستانه"]
["مرکزی","آشتيان"]
["مرکزی","پرندك"]
["مرکزی","تفرش"]
["مرکزی","توره"]
["مرکزی","جاورسيان"]
["مرکزی","خشكرود"]
["مرکزی","خمين"]
["مرکزی","خنداب"]
["مرکزی","داودآباد"]
["مرکزی","دليجان"]
["مرکزی","رازقان"]
["مرکزی","زاويه"]
["مرکزی","ساروق"]
["مرکزی","ساوه"]
["مرکزی","سنجان"]
["مرکزی","شازند"]
["مرکزی","شهرجديدمهاجران"]
["مرکزی","غرق آباد"]
["مرکزی","فرمهين"]
["مرکزی","قورچي باشي"]
["مرکزی","كرهرود"]
["مرکزی","كميجان"]
["مرکزی","مأمونيه"]
["مرکزی","محلات"]
["مرکزی","ميلاجرد"]
["مرکزی","نراق"]
["مرکزی","نوبران"]
["مرکزی","نيمور"]
["مرکزی","هندودر"]
["هرمزگان","ابوموسي"]
["هرمزگان","بستك"]
["هرمزگان","بندرجاسك"]
["هرمزگان","بندرچارك"]
["هرمزگان","بندرعباس"]
["هرمزگان","بندرلنگه"]
["هرمزگان","بيكاه"]
["هرمزگان","پارسيان"]
["هرمزگان","تخت"]
["هرمزگان","جناح"]
["هرمزگان","حاجي آباد  "]
["هرمزگان","خمير"]
["هرمزگان","درگهان"]
["هرمزگان","دهبارز"]
["هرمزگان","رويدر"]
["هرمزگان","زيارتعلي"]
["هرمزگان","سردشت بشاگرد"]
["هرمزگان","سرگز"]
["هرمزگان","سندرك"]
["هرمزگان","سوزا"]
["هرمزگان","سيريك"]
["هرمزگان","فارغان"]
["هرمزگان","فين"]
["هرمزگان","قشم"]
["هرمزگان","قلعه قاضي"]
["هرمزگان","كنگ"]
["هرمزگان","كوشكنار"]
["هرمزگان","كيش"]
["هرمزگان","گوهران"]
["هرمزگان","ميناب"]
["هرمزگان","هرمز"]
["هرمزگان","هشتبندي"]
["همدان","ازندريان"]
["همدان","اسدآباد"]
["همدان","برزول"]
["همدان","بهار"]
["همدان","تويسركان"]
["همدان","جورقان"]
["همدان","جوكار"]
["همدان","دمق"]
["همدان","رزن"]
["همدان","زنگنه"]
["همدان","سامن"]
["همدان","سركان"]
["همدان","شيرين سو"]
["همدان","صالح آباد   "]
["همدان","فامنين"]
["همدان","فرسفج"]
["همدان","فيروزان"]
["همدان","قروه در جزين"]
["همدان","قهاوند"]
["همدان","كبودرآهنگ"]
["همدان","گل تپه"]
["همدان","گيان"]
["همدان","لالجين"]
["همدان","مريانج"]
["همدان","ملاير"]
["همدان","نهاوند"]
["همدان","همدان"]
["یزد","ابركوه"]
["یزد","احمدآباد"]
["یزد","اردكان "]
["یزد","اشكذر"]
["یزد","بافق"]
["یزد","بفروئيه"]
["یزد","بهاباد"]
["یزد","تفت"]
["یزد","حميديا"]
["یزد","خضرآباد"]
["یزد","ديهوك"]
["یزد","زارچ"]
["یزد","شاهديه"]
["یزد","طبس"]
["یزد","عشق آباد "]
["یزد","عقدا"]
["یزد","مروست"]
["یزد","مهردشت"]
["یزد","مهريز"]
["یزد","ميبد"]
["یزد","ندوشن"]
["یزد","نير "]
["یزد","هرات"]
["یزد","یزد"]

{"sheet":"sheet9","index":10,"n_rows":69,"n_cols":9,"rows_kept":69,"cut":false,"hidden":false,"merged":[[66,0,68,1],[66,2,66,8],[67,2,67,8],[68,2,68,8],[36,0,36,1],[36,3,36,4],[36,5,36,6],[59,0,59,3],[58,0,58,3],[58,5,58,8],[52,5,52,8],[37,4,37,8],[53,5,53,8],[54,5,54,8],[55,5,55,8],[56,5,56,8],[45,7,45,8],[46,0,46,4],[46,7,46,8],[38,0,38,8],[39,0,39,4],[40,0,40,4],[41,0,41,4],[63,0,65,1],[17,0,17,1],[9,0,9,1],[9,2,9,4],[9,5,9,6],[9,7,9,8],[12,5,12,6],[12,7,12,8],[10,0,10,1],[10,5,10,6],[10,7,10,8],[12,0,12,1],[12,2,12,4],[10,2,10,3],[13,0,13,1],[13,2,13,4],[13,5,13,6],[13,7,13,8],[14,0,14,1],[14,2,14,4],[14,5,14,6],[14,7,14,8],[11,0,11,1],[11,2,11,4],[11,5,11,6],[0,1,0,6],[7,0,7,8],[8,0,8,1],[8,2,8,4],[8,5,8,6],[8,7,8,8],[3,1,3,7],[0,0,1,0],[5,1,5,3],[5,4,5,7],[1,1,1,5],[1,7,1,8],[18,0,18,1],[18,2,18,4],[18,5,18,6],[18,7,18,8],[19,0,19,1],[19,2,19,8],[21,0,21,1],[22,0,22,1],[27,4,27,5],[23,2,23,3],[24,2,24,3],[22,4,22,6],[23,4,23,6],[24,4,24,6],[11,7,11,8],[60,0,60,8],[52,0,52,3],[53,0,53,3],[54,0,54,3],[55,0,55,3],[56,0,56,3],[57,0,57,3],[51,0,51,8],[57,5,57,8],[50,0,50,4],[50,7,50,8],[47,0,47,4],[47,7,47,8],[48,0,48,4],[48,7,48,8],[49,0,49,4],[49,7,49,8],[43,0,43,8],[44,0,45,4],[44,5,44,8],[15,0,15,1],[15,2,15,4],[15,5,15,6],[15,7,15,8],[16,0,16,1],[16,2,16,4],[17,4,17,8],[21,7,21,8],[36,7,36,8],[30,1,30,3],[31,1,31,3],[32,1,32,3],[30,4,30,5],[31,4,31,5],[32,4,32,5],[33,7,33,8],[33,5,33,6],[33,3,33,4],[28,1,28,3],[28,4,28,5],[29,1,29,3],[29,4,29,5],[34,0,34,1],[33,0,33,1],[21,2,21,3],[21,4,21,6],[22,2,22,3],[16,5,16,6],[63,2,63,8],[64,2,64,8],[65,2,65,8],[61,0,62,1],[61,2,62,2],[22,7,22,8],[23,7,23,8],[24,7,24,8],[35,0,35,8],[23,0,23,1],[24,0,24,1],[59,5,59,8],[37,0,37,1],[42,0,42,4],[39,5,39,8],[34,4,34,8],[40,5,40,8],[41,5,41,8],[42,5,42,8],[26,0,26,8],[27,7,27,8],[27,1,27,3],[61,3,62,8]]}
[null,"شرکت توزیع نیروی برق استان خراسان رضوی"]
[null,"دفتر آموزش و برنامه‌ریزی نیروی انسانی",null,null,null,null,"تاریخ ثبت:"]
[]
[null,"فرم ثبت اطلاعات متقاضیان همکاری"]
[]
[null,"رشته شغلی مورد تقاضا: ",null,null,{"$f":"Sheet5!H9","v":0}]
[]
["1- مشخصات هویتی"]
["نام و نام خانوادگی:",null,{"$f":"Sheet1!H6","v":0},null,null,"کد ملی:",null,{"$f":"IF(LEN(Sheet1!H8)=10,Sheet1!H8,IF(LEN(Sheet1!H8)=9,0&Sheet1!H8,0&0&Sheet1!H8))","v":"00"}]
["نام پدر:",null,{"$f":"Sheet1!Q6","v":0},null,null,"شماره شناسنامه:",null,{"$f":"IF(data_list!J128=TRUE,H9,Sheet1!Q8)","v":"00"}]
["تاریخ تولد:",null,{"$f":"Sheet1!K11&\"/\"&data_list!R2&\"/\"&Sheet1!H11","v":"/FALSE/"},null,{"$f":"data_list!$S$2&\" \"&\"ساله\"","v":"1400 ساله"},"جنسیت:",null,{"$f":"IF(data_list!J20=2,\"خانم\",\"آقا\")","v":"آقا"}]
["محل تولد: استان:",null,{"$f":"Sheet1!Q11","v":0},null,null,"شهرستان:",null,{"$f":"Sheet1!S11","v":0}]
["تلفن همراه:",null,{"$f":"Sheet1!H14","v":0},null,null,"تلفن ثابت:",null,{"$f":"0&Sheet1!T14&Sheet1!Q14","v":"0"}]
["وضعیت نظام وظیفه:",null,{"$f":"IF(data_list!J2=2,\"انجام داده‌ام\",IF(data_list!J2=1,\"معاف شده‌ام\",\"\"))","v":""},null,null,{"$f":"IF(C14=\"معاف شدهام\",\"علت معافیت:\",\"ارگان محل خدمت:\")","v":"ارگان محل خدمت:"},null,{"$f":"Sheet1!Q20","v":0}]
["وضعیت تأهل:",null,{"$f":"IF(data_list!J5=2,\"متأهل\",\"مجرد\")","v":"مجرد"},null,null,"شغل همسر:",null,{"$f":"Sheet1!Q18","v":0}]
["قد (سانتی‌متر):",null,{"$f":"Sheet5!H11","v":0},null,null,"وزن (کیلوگرم):",null,{"$f":"Sheet5!Q11","v":0}]
["مذهب",null,{"$f":"IF(data_list!J125=2,\"سنی\",\"شیعه\")","v":"شیعه"},null,null,"سابقه بیمه‌پردازی:",null,{"$f":"Sheet4!M6","v":0},"روز"]
["سابقه بازداشت یا زندان:",null,{"$f":"IF(data_list!J122=TRUE,\"دارد\",\"ندارد\")","v":"ندارد"},"به علت:",{"$f":"Sheet5!Q13","v":0}]
["آدرس (استان):",null,{"$f":"Sheet1!H23","v":0},null,null,"آدرس (شهرستان):",null,{"$f":"Sheet1!J23","v":0}]
["آدرس:",null,{"$f":"Sheet1!L23","v":0}]
[]
["گواهینامه",null,"دارد / ندارد",null,"نوع",null,null,"سال اخذ"]
["موتور سیکلت",null,{"$f":"IF(data_list!J116=TRUE,\"دارد\",\"ندارد\")","v":"ندارد"},null,"-",null,null,{"$f":"IF(C23=\"ندارد\",\"\",Sheet5!J16)","v":""}]
["اتومبیل",null,{"$f":"IF(data_list!J118=TRUE,\"دارد\",\"ندارد\")","v":"ندارد"},null,{"$f":"IF(C24=\"ندارد\",\"\",Sheet5!N16)","v":""},null,null,{"$f":"IF(C24=\"ندارد\",\"\",Sheet5!O16)","v":""}]
["ویژه",null,{"$f":"IF(data_list!J120=TRUE,\"دارد\",\"ندارد\")","v":"ندارد"},null,{"$f":"IF(C25=\"ندارد\",\"\",Sheet5!T16)","v":""},null,null,{"$f":"IF(C25=\"ندارد\",\"\",Sheet5!S16)","v":""}]
[]
["2- سوابق تحصیلی و آموزشی"]
["مقطع","رشته تحصیلی",null,null,"دانشگاه محل تحصیل",null,"معدل","سال تحصیل از / تا"]
["دیپلم",{"$f":"IF(Sheet2!H9<>\"\",Sheet2!H9,\"-\")","v":"-"},null,null,{"$f":"IF(Sheet2!N9<>\"\",Sheet2!N9,\"-\")","v":"-"},null,{"$f":"Sheet2!M9&\"/\"&Sheet2!L9","v":"/"},{"$f":"IF(B29=\"-\",\"-\",Sheet2!Q9)","v":"-"},{"$f":"IF(B29=\"-\",\"-\",Sheet2!R9)","v":"-"}]
["فوق دیپلم",{"$f":"IF(Sheet2!H11<>\"\",Sheet2!H11,\"-\")","v":"-"},null,null,{"$f":"IF(Sheet2!N11<>\"\",Sheet2!N11,\"-\")","v":"-"},null,{"$f":"Sheet2!M11&\"/\"&Sheet2!L11","v":"/"},{"$f":"IF(B30=\"-\",\"-\",Sheet2!Q11)","v":"-"},{"$f":"IF(B30=\"-\",\"-\",Sheet2!R11)","v":"-"}]
["کارشناسی",{"$f":"IF(Sheet2!H13<>\"\",Sheet2!H13,\"-\")","v":"-"},null,null,{"$f":"IF(Sheet2!N13<>\"\",Sheet2!N13,\"-\")","v":"-"},null,{"$f":"Sheet2!M13&\"/\"&Sheet2!L13","v":"/"},{"$f":"IF(B31=\"-\",\"-\",Sheet2!Q13)","v":"-"},{"$f":"IF(B31=\"-\",\"-\",Sheet2!R13)","v":"-"}]
["کارشناسی‌ارشد",{"$f":"IF(Sheet2!H15<>\"\",Sheet2!H15,\"-\")","v":"-"},null,null,{"$f":"IF(Sheet2!N15<>\"\",Sheet2!N15,\"-\")","v":"-"},null,{"$f":"Sheet2!M15&\"/\"&Sheet2!L15","v":"/"},{"$f":"IF(B32=\"-\",\"-\",Sheet2!Q15)","v":"-"},{"$f":"IF(B32=\"-\",\"-\",Sheet2!R15)","v":"-"}]
["دکترا",{"$f":"IF(Sheet2!H17<>\"\",Sheet2!H17,\"-\")","v":"-"},null,null,{"$f":"IF(Sheet2!N17<>\"\",Sheet2!N15,\"-\")","v":"-"},null,{"$f":"Sheet2!M17&\"/\"&Sheet2!L17","v":"/"},{"$f":"IF(B33=\"-\",\"-\",Sheet2!Q17)","v":"-"},{"$f":"IF(B33=\"-\",\"-\",Sheet2!R17)","v":"-"}]
["سطح آشنایی با زبان انگلیسی",null,"عالی","خوب",null,"متوسط",null,"ضعیف"]
["مدرک معتبر",null,"دارد","ندارد"]
["3- سوابق پژوهشی و مهارتی"]
["کار با کامپیوتر",null,"عالی","خوب",null,"متوسط",null,"ضعیف"]
["مدرک معتبر",null,"دارد","ندارد"]
["نوع و سطح آشنايي با نرم افزارهاي پايه و تخصصي مورد نياز صنعت"]
["نام نرم افزار",null,null,null,null,"1-آشنایی مقدماتی/2-نسبتا مسلط/3-تا حدود زیادی مسلط/4-تسلط کامل"]
[{"$f":"Sheet3!I15","v":0},null,null,null,null,{"$f":"Sheet3!Q15","v":0}]
[{"$f":"Sheet3!I17","v":0},null,null,null,null,{"$f":"Sheet3!Q17","v":0}]
[{"$f":"Sheet3!I19","v":0},null,null,null,null,{"$f":"Sheet3!Q19","v":0}]
["دوره های آموزشی گذرانده شده"]
["عنوان دوره",null,null,null,null,"مشخصات دوره"]
[null,null,null,null,null,"سال","طول دوره","محل آموزش"]
[{"$f":"Sheet3!I25","v":0},null,null,null,null,{"$f":"Sheet3!P25","v":0},{"$f":"Sheet3!N25","v":0},{"$f":"Sheet3!Q25","v":0}]
[{"$f":"Sheet3!I27","v":0},null,null,null,null,{"$f":"Sheet3!P27","v":0},{"$f":"Sheet3!N27","v":0},{"$f":"Sheet3!Q27","v":0}]
[{"$f":"Sheet3!I29","v":0},null,null,null,null,{"$f":"Sheet3!P29","v":0},{"$f":"Sheet3!N29","v":0},{"$f":"Sheet3!Q29","v":0}]
[{"$f":"Sheet3!I31","v":0},null,null,null,null,{"$f":"Sheet3!P31","v":0},{"$f":"Sheet3!N31","v":0},{"$f":"Sheet3!Q31","v":0}]
[{"$f":"Sheet3!I33","v":0},null,null,null,null,{"$f":"Sheet3!P33","v":0},{"$f":"Sheet3!N33","v":0},{"$f":"Sheet3!Q33","v":0}]
["4- سوابق خدمتی"]
["نام دستگاه اجرایی / سازمان / شرکت / مؤسسه",null,null,null,"سال از / تا","مسئولیت / سمت / پست سازمانی"]
[{"$f":"Sheet4!F11","v":0},null,null,null,{"$f":"Sheet4!J11&\"-\"&\"1400\"","v":"-1400"},{"$f":"Sheet4!L11","v":0}]
[{"$f":"Sheet4!F13","v":0},null,null,null,{"$f":"Sheet4!J13&\"-\"&Sheet4!K13","v":"-"},{"$f":"Sheet4!L13","v":0}]
[{"$f":"Sheet4!F15","v":0},null,null,null,{"$f":"Sheet4!J15&\"-\"&Sheet4!K15","v":"-"},{"$f":"Sheet4!L15","v":0}]
[{"$f":"Sheet4!F17","v":0},null,null,null,{"$f":"Sheet4!J17&\"-\"&Sheet4!K17","v":"-"},{"$f":"Sheet4!L17","v":0}]
[{"$f":"Sheet4!F19","v":0},null,null,null,{"$f":"Sheet4!J19&\"-\"&Sheet4!K19","v":"-"},{"$f":"Sheet4!L19","v":0}]
[{"$f":"Sheet4!F21","v":0},null,null,null,{"$f":"Sheet4!J21&\"-\"&Sheet4!K21","v":"-"},{"$f":"Sheet4!L21","v":0}]
[{"$f":"Sheet4!F23","v":0},null,null,null,{"$f":"Sheet4!J23&\"-\"&Sheet4!K23","v":"-"},{"$f":"Sheet4!L23","v":0}]
["5- معرفان"]
["بستگان شاغل در صنعت برق:",null,{"$f":"IF(data_list!J124=TRUE,\"نام:\"&CHAR(10)&\"پست:\"&\" \"&\"محل خدمت:\"&CHAR(10)&\"شماره تماس:\",\"ندارد\")","v":"ندارد"},{"$f":"IF(data_list!J124=TRUE,Sheet5!Q19&CHAR(10)&Sheet5!Q21&CHAR(10)&Sheet5!Q23&CHAR(10)&Sheet5!Q25,\"\")","v":""}]
[]
["معرف اول:",null,{"$f":"Sheet5!H30&\" \"&\"-\"&\" \"&Sheet5!H32","v":" - "}]
[null,null,{"$f":"\"شماره تماس:\"&\" \"&Sheet5!H36&\" \"&\"-\"&\" \"&\"نسبت:\"&\" \"&Sheet5!H34","v":"شماره تماس:  - نسبت: "}]
[null,null,{"$f":"\"آدرس:\"&\" \"&Sheet5!H38","v":"آدرس: "}]
["معرف دوم:",null,{"$f":"Sheet5!Q30&\" \"&\"-\"&\" \"&Sheet5!Q32","v":" - "}]
[null,null,{"$f":"\"شماره تماس:\"&\" \"&Sheet5!Q36&\" \"&\"-\"&\" \"&\"نسبت:\"&\" \"&Sheet5!Q34","v":"شماره تماس:  - نسبت: "}]
[null,null,{"$f":"\"آدرس:\"&\" \"&Sheet5!Q38","v":"آدرس: "}]

{"sheet":"sheet10","index":11,"n_rows":58,"n_cols":9,"rows_kept":58,"cut":false,"hidden":false,"merged":[[0,0,1,0],[0,1,0,6],[3,1,3,7],[6,1,6,3],[6,4,6,7],[5,1,5,3],[5,4,5,7],[11,0,11,1],[11,2,11,3],[11,5,11,6],[11,7,11,8],[1,1,1,4],[1,7,1,8],[12,0,12,1],[12,2,12,4],[12,5,12,6],[12,7,12,8],[8,0,8,8],[9,0,9,1],[9,2,9,4],[9,5,9,6],[9,7,9,8],[10,0,10,1],[10,2,10,4],[10,5,10,6],[10,7,10,8],[15,0,15,1],[15,2,15,4],[15,5,15,6],[15,7,15,8],[16,0,16,1],[16,2,16,4],[16,5,16,6],[16,7,16,8],[13,0,13,1],[13,2,13,4],[13,5,13,6],[13,7,13,8],[14,0,14,1],[14,2,14,4],[14,5,14,6],[14,7,14,8],[21,0,21,8],[22,1,22,3],[22,4,22,5],[22,7,22,8],[19,0,19,1],[19,2,19,8],[17,0,17,1],[17,2,17,4],[18,0,18,1],[18,2,18,4],[18,5,18,6],[18,7,18,8],[17,5,17,6],[26,1,26,3],[26,4,26,5],[27,1,27,3],[27,4,27,5],[28,0,28,1],[28,3,28,4],[28,5,28,6],[23,1,23,3],[23,4,23,5],[24,1,24,3],[24,4,24,5],[25,1,25,3],[25,4,25,5],[33,0,33,1],[33,4,33,8],[34,0,34,8],[35,0,35,4],[35,5,35,8],[36,0,36,4],[36,5,36,8],[28,7,28,8],[29,0,29,1],[29,4,29,8],[31,0,31,8],[32,0,32,1],[32,3,32,4],[32,5,32,6],[32,7,32,8],[42,0,42,4],[42,7,42,8],[43,0,43,4],[43,7,43,8],[44,0,44,4],[44,7,44,8],[37,0,37,4],[37,5,37,8],[38,0,38,4],[38,5,38,8],[39,0,39,8],[40,0,41,4],[40,5,40,8],[41,7,41,8],[49,0,49,3],[49,5,49,8],[50,0,50,3],[50,5,50,8],[51,0,51,3],[51,5,51,8],[45,0,45,4],[45,7,45,8],[46,0,46,4],[46,7,46,8],[47,0,47,8],[48,0,48,3],[48,5,48,8],[57,0,67,8],[55,0,55,3],[55,5,55,8],[56,0,56,8],[52,0,52,3],[52,5,52,8],[53,0,53,3],[53,5,53,8],[54,0,54,3],[54,5,54,8]]}
[null,"شرکت توزیع نیروی برق استان خراسان رضوی"]
[null,"دفتر آموزش و برنامه‌ریزی نیروی انسانی",null,null,null,null,"تاریخ ثبت:"]
[]
[null,"فرم ثبت اطلاعات متقاضیان انتقال"]
[]
[null,"متقاضی انتقال از:",null,null,{"$f":"Sheet6!H9","v":0}]
[null,"محل خدمت:",null,null,{"$f":"Sheet6!Q9&\" \"&\"-\"&\" \"&Sheet6!S9","v":" - "}]
[]
["1- مشخصات فردی"]
["نام و نام خانوادگی:",null,{"$f":"Sheet1!H6","v":0},null,null,"کد ملی:",null,{"$f":"IF(LEN(Sheet1!H8)=10,Sheet1!H8,IF(LEN(Sheet1!H8)=9,0&Sheet1!H8,0&0&Sheet1!H8))","v":"00"}]
["نام پدر:",null,{"$f":"Sheet1!Q6","v":0},null,null,"شماره شناسنامه:",null,{"$f":"IF(data_list!J128=TRUE,H10,Sheet1!Q8)","v":"00"}]
["تاریخ تولد:",null,{"$f":"Sheet1!K11&\"/\"&data_list!R2&\"/\"&Sheet1!H11","v":"/FALSE/"},null,{"$f":"data_list!$S$2&\" \"&\"ساله\"","v":"1400 ساله"},"جنسیت:",null,{"$f":"IF(data_list!J20=2,\"خانم\",\"آقا\")","v":"آقا"}]
["محل تولد: استان:",null,{"$f":"Sheet1!Q11","v":0},null,null,"شهرستان:",null,{"$f":"Sheet1!S11","v":0}]
["تلفن همراه:",null,{"$f":"Sheet1!H14","v":0},null,null,"تلفن ثابت:",null,{"$f":"0&Sheet1!T14&Sheet1!Q14","v":"0"}]
["وضعیت نظام وظیفه:",null,{"$f":"IF(data_list!J2=2,\"انجام داده‌ام\",IF(data_list!J2=1,\"معاف شده‌ام\",\"\"))","v":""},null,null,{"$f":"IF(C15=\"معاف شدهام\",\"علت معافیت:\",\"ارگان محل خدمت:\")","v":"ارگان محل خدمت:"},null,{"$f":"Sheet1!Q20","v":0}]
["وضعیت تأهل:",null,{"$f":"IF(data_list!J5=2,\"متأهل\",\"مجرد\")","v":"مجرد"},null,null,"شغل همسر:",null,{"$f":"Sheet1!Q18","v":0}]
["قد (سانتی‌متر):",null,{"$f":"Sheet5!H11","v":0},null,null,"وزن (کیلوگرم):",null,{"$f":"Sheet5!Q11","v":0}]
["مذهب",null,{"$f":"IF(data_list!J125=2,\"سنی\",\"شیعه\")","v":"شیعه"},null,null,"سابقه بیمه‌پردازی:",null,{"$f":"Sheet4!M6","v":0},"روز"]
["آدرس (استان):",null,{"$f":"Sheet1!H23","v":0},null,null,"آدرس (شهرستان):",null,{"$f":"Sheet1!J23","v":0}]
["آدرس:",null,{"$f":"Sheet1!L23","v":0}]
[]
["2- سوابق تحصیلی و آموزشی"]
["مقطع","رشته تحصیلی",null,null,"دانشگاه محل تحصیل",null,"معدل","سال تحصیل از / تا"]
["دیپلم",{"$f":"IF(Sheet2!H9<>\"\",Sheet2!H9,\"-\")","v":"-"},null,null,{"$f":"IF(Sheet2!N9<>\"\",Sheet2!N9,\"-\")","v":"-"},null,{"$f":"Sheet2!M9&\"/\"&Sheet2!L9","v":"/"},{"$f":"IF(B24=\"-\",\"-\",Sheet2!Q9)","v":"-"},{"$f":"IF(B24=\"-\",\"-\",Sheet2!R9)","v":"-"}]
["فوق دیپلم",{"$f":"IF(Sheet2!H11<>\"\",Sheet2!H11,\"-\")","v":"-"},null,null,{"$f":"IF(Sheet2!N11<>\"\",Sheet2!N11,\"-\")","v":"-"},null,{"$f":"Sheet2!M11&\"/\"&Sheet2!L11","v":"/"},{"$f":"IF(B25=\"-\",\"-\",Sheet2!Q11)","v":"-"},{"$f":"IF(B25=\"-\",\"-\",Sheet2!R11)","v":"-"}]
["کارشناسی",{"$f":"IF(Sheet2!H13<>\"\",Sheet2!H13,\"-\")","v":"-"},null,null,{"$f":"IF(Sheet2!N13<>\"\",Sheet2!N13,\"-\")","v":"-"},null,{"$f":"Sheet2!M13&\"/\"&Sheet2!L13","v":"/"},{"$f":"IF(B26=\"-\",\"-\",Sheet2!Q13)","v":"-"},{"$f":"IF(B26=\"-\",\"-\",Sheet2!R13)","v":"-"}]
["کارشناسی‌ارشد",{"$f":"IF(Sheet2!H15<>\"\",Sheet2!H15,\"-\")","v":"-"},null,null,{"$f":"IF(Sheet2!N15<>\"\",Sheet2!N15,\"-\")","v":"-"},null,{"$f":"Sheet2!M15&\"/\"&Sheet2!L15","v":"/"},{"$f":"IF(B27=\"-\",\"-\",Sheet2!Q15)","v":"-"},{"$f":"IF(B27=\"-\",\"-\",Sheet2!R15)","v":"-"}]
["دکترا",{"$f":"IF(Sheet2!H17<>\"\",Sheet2!H17,\"-\")","v":"-"},null,null,{"$f":"IF(Sheet2!N17<>\"\",Sheet2!N15,\"-\")","v":"-"},null,{"$f":"Sheet2!M17&\"/\"&Sheet2!L17","v":"/"},{"$f":"IF(B28=\"-\",\"-\",Sheet2!Q17)","v":"-"},{"$f":"IF(B28=\"-\",\"-\",Sheet2!R17)","v":"-"}]
["سطح آشنایی با زبان انگلیسی",null,"عالی","خوب",null,"متوسط",null,"ضعیف"]
["مدرک معتبر",null,"دارد","ندارد"]
[]
["3- سوابق پژوهشی و مهارتی"]
["کار با کامپیوتر",null,"عالی","خوب",null,"متوسط",null,"ضعیف"]
["مدرک معتبر",null,"دارد","ندارد"]
["نوع و سطح آشنايي با نرم افزارهاي پايه و تخصصي مورد نياز صنعت"]
["نام نرم افزار",null,null,null,null,"1-آشنایی مقدماتی/2-نسبتا مسلط/3-تا حدود زیادی مسلط/4-تسلط کامل"]
[{"$f":"Sheet3!I15","v":0},null,null,null,null,{"$f":"Sheet3!Q15","v":0}]
[{"$f":"Sheet3!I17","v":0},null,null,null,null,{"$f":"Sheet3!Q17","v":0}]
[{"$f":"Sheet3!I19","v":0},null,null,null,null,{"$f":"Sheet3!Q19","v":0}]
["دوره های آموزشی گذرانده شده"]
["عنوان دوره",null,null,null,null,"مشخصات دوره"]
[null,null,null,null,null,"سال","طول دوره","محل آموزش"]
[{"$f":"Sheet3!I25","v":0},null,null,null,null,{"$f":"Sheet3!P25","v":0},{"$f":"Sheet3!N25","v":0},{"$f":"Sheet3!Q25","v":0}]
[{"$f":"Sheet3!I27","v":0},null,null,null,null,{"$f":"Sheet3!P27","v":0},{"$f":"Sheet3!N27","v":0},{"$f":"Sheet3!Q27","v":0}]
[{"$f":"Sheet3!I29","v":0},null,null,null,null,{"$f":"Sheet3!P29","v":0},{"$f":"Sheet3!N29","v":0},{"$f":"Sheet3!Q29","v":0}]
[{"$f":"Sheet3!I31","v":0},null,null,null,null,{"$f":"Sheet3!P31","v":0},{"$f":"Sheet3!N31","v":0},{"$f":"Sheet3!Q31","v":0}]
[{"$f":"Sheet3!I33","v":0},null,null,null,null,{"$f":"Sheet3!P33","v":0},{"$f":"Sheet3!N33","v":0},{"$f":"Sheet3!Q33","v":0}]
["4- سوابق خدمتی"]
["نام دستگاه اجرایی / سازمان / شرکت / مؤسسه",null,null,null,"سال از / تا","مسئولیت / سمت / پست سازمانی"]
[{"$f":"Sheet4!F11","v":0},null,null,null,{"$f":"Sheet4!J11&\"-\"&\"1400\"","v":"-1400"},{"$f":"Sheet4!L11","v":0}]
[{"$f":"Sheet4!F13","v":0},null,null,null,{"$f":"Sheet4!J13&\"-\"&Sheet4!K13","v":"-"},{"$f":"Sheet4!L13","v":0}]
[{"$f":"Sheet4!F15","v":0},null,null,null,{"$f":"Sheet4!J15&\"-\"&Sheet4!K15","v":"-"},{"$f":"Sheet4!L15","v":0}]
[{"$f":"Sheet4!F17","v":0},null,null,null,{"$f":"Sheet4!J17&\"-\"&Sheet4!K17","v":"-"},{"$f":"Sheet4!L17","v":0}]
[{"$f":"Sheet4!F19","v":0},null,null,null,{"$f":"Sheet4!J19&\"-\"&Sheet4!K19","v":"-"},{"$f":"Sheet4!L19","v":0}]
[{"$f":"Sheet4!F21","v":0},null,null,null,{"$f":"Sheet4!J21&\"-\"&Sheet4!K21","v":"-"},{"$f":"Sheet4!L21","v":0}]
[{"$f":"Sheet4!F23","v":0},null,null,null,{"$f":"Sheet4!J23&\"-\"&Sheet4!K23","v":"-"},{"$f":"Sheet4!L23","v":0}]
["5- دلایل درخواست انتقال"]
[{"$f":"Sheet6!H11","v":0}]